Workbook

Sheet USER GUIDE - EO
A1: EDM Emergency Overflow Annual Return: Quick User Guide
A2: !! See separate pdf User Guide for further detail !!
A4: Submitting the sheet to the EA:
A5: - Please edit the date of submission (below) and delete all surplus tabs (orange button above. Note this is non-reversible)
A6: Submission Date: dd/mm/yyyy
A7: Please send to email inbox: askED@environment-agency.gov.uk
A8: Please name file using the following convention: "EDM Return WaSC period.xls" .
A9: For example if Severn Trent Water had a storm overflow bathing season return for 2022 it would be "EDM Return Severn Trent Water Storm Overflow Bathing Season 2022.xls"
A10: For example if South West Water had a emergency overflow bathing season return for 2022 it would be "EDM Return Wessex Water Storm Overflow Annual 2022.xls"
A11: For example if Wessex Water had a storm overflow annual return for 2022 it would be "EDM Return Wessex Water Storm Overflow Annual 2022.xls"
A12: For example if Southern Water had an emergency overflow annual return for 2022 it would be "EDM Return Southern Water Emergency Overflow Annual 2022.xls"
A14: General Guidance:
A15: - The EDM emergency overflow annual return 2022 should include data for all Emergency Overflows with an existing regulatory EDM permit condition. EOs with non-regulatory EDM data may be included at WaSC discretion
A16: - Reported spill data (count & duration) & EDM % Operation should be considered reliable, verified and an accurate representation of the spills that occurred during the reporting period. Data that is known to be erroneous should not be reported on. See main User Guide (Word document) for more information and examples.
A17: - Base information (e.g. EA permit reference, site name, Outlet NGR etc.) on overflows must directly match the Environment Agency (EA) Consents Database (see "Resources" below).
A18: - Where EDM reporting operability is <90.0% (Column Q) subsequent columns Primary Reason (Column R) and Action Taken / Planned (Column S) must be completed.
A19: - A number of columns are "do once"; the data are not expected to change year on year. These headings are highlighted in grey below. Data in remaining columns are expected to change, or may change, each year. These headings are highlighted in light green below.
A20: - Any additional overflows not previously provided, newly-reconciled Consents Database permit references, or any queries linked to previous WFD infomation or permit references must be submitted by WaSCs to the EA by Friday 16 December 2022. The EA will then identify the relevant WFD information & return to WaSCs by Monday 16 January ahead of final submission by WaSCs in February.
A22: Resources:
A23: - Environment Agency national consents database: | B23: Consented Discharges to Controlled Waters with Conditions - data.gov.uk
A24: (Note the EA Consents Database is updated quarterly on .gov.uk)
A25: - Environment Agency Risk-Based Approach to the Monitoring of Storm Discharges (September 2013)
A26: - Environment Agency Storm Overflow Assessment Framework (June 2018): | C26: Storm Overflow Assessment Framework
A28: Guide to columns & drop-down selection:
A29: Water Company Name | B29: (Column A)
A30: Drop-down options Column A:
A31: Thames Water
A32: Anglian Water
A33: Yorkshire Water
A34: Dwr Cymru Welsh Water
A35: Northumbrian Water
A36: Severn Trent Water
A37: Southern Water
A38: South West Water
A39: United Utilities
A40: Wessex Water
A42: Site Name (EA Consents Database) | B42: (Column B)
A43: - Site name that matches exactly with column "Discharge_Site_Name" on EA consents database
A45: Site Name (WaSC Operational Name) | B45: (Column C)
A46: - Site name used by the WaSC for operational reasons. The EA Consents Database Site Name must be provided in column B - the WaSC site name is not a substitute
A47: - Column C is optional
A49: EA Consents Database Permit Reference | B49: (Column D)
A50: - As shown in column "Permit Number" on EA Consents Database. NB: this may occassionally differ from number shown on actual permit or WaSC URN/folio
A52: WaSC Supplementary Permit Ref. | B52: (Column E)
A53: - WaSC reference number for permitted overflow. The EA Consents Database permit reference must be provided in column D - the WaSC permit reference is not a substitute
A54: - Column E is optional
A56: Activity reference | B56: (Column F)
A57: - Listed on new format permits under Schedule 1 – “Operations” (e.g. A1 / A2 etc.)
A58: - Listed on old format permits under Schedule conditions (e.g. Schedule No. A.115K/00-01)
A59: - NB: This is not the same as columns “DISCHARGE_SITE_TYPE_CODE” or “DSI_TYPE_DESCRIPTION” on EA consents database
A61: Storm discharge asset type | B61: (Column G)
A62: - Must be "Emergency Overflow" as standard for this Emergency Overflow data return.
A64: Outlet discharge NGR (Consents Database) | B64: (Column H)
A65: - This is the actual discharge point to the environment.
A66: - Listed on EA consents database as “OUTLET_GRID_REF”. This is the reference to use
A67: - Also listed on new format permits under Schedule 3 - "Discharge Point NGR"
A68: - Also listed on old format permits under "Place of Discharge"
A69: - NB: This is not the same as columns “DISCHARGE_NGR” (discarhge site NGR) or “EFFLUENT_GRID_REF” (effluent monitoring NGR) on EA consents database
A71: WFD Waterbody ID (Cycle 2) | B71: (Column I)
A72: - Identification number of WFD waterbody at the discharge point (as per Cycle 2)
A73: - Prefixed with "GB…"
A75: WFD Waterbody Catchment Name (Cycle 2) | B75: (Column J)
A76: - Name of WFD waterbody catchment at the discharge point (as per Cycle 2)
A77: - NB: This is not the same as "CATC_NAME" on EA consents database
A79: Receiving Water / Environment - common name (Consents Database) | B79: (Column K)
A80: - Listed on EA consents database under "RECEIVING_WATER" NB: this may differ from receiving water shown on actual permit
A81: - Also listed on new format permits under Schedule 3 - "Discharge Point"
A82: - Also listed on old format permits under "Place of Discharge"
A84: Shellfish Water | B84: (Column L)
A85: - Populate for storm overflows that have Shellfish Water EDM requirements
A86: - Please separate multiple SFW names with ";"
A88: Bathing Water | B88: (Column M)
A89: - Populate for storm overflows that have Bathing Water EDM requirements
A90: - Please separate multiple BW names with ";"
A92: Initial EDM commission date | B92: (Column N)
A93: - Date EDM commissioned; the date data can be expected from the EDM
A94: - See the more detailed User Guide (Word format) for more detailed table of definitions (page 7)
A95: - Note: Installation date may precede commissioned date
A96: Drop-down options Column M:
A97: Commissioned pre-2016 - full year data expected | B97: Installed in previous reporting year
A98: Commissioned in 2016 - full year data expected | B98: Installed in previous reporting year
A99: Commissioned in 2017 - full year data expected | B99: Installed in previous reporting year
A100: Commissioned in 2018 - full year data expected | B100: Installed in previous reporting year
A101: Commissioned in 2019 - full year data expected | B101: Installed in previous reporting year
A102: Commissioned in 2020 - full year data expected | B102: Installed in previous reporting year
A103: Commissioned in 2021 - full year data expected | B103: Installed in previous reporting year
A104: Jan 2022 | B104: -
A105: Feb 2022 | B105: -
A106: Mar 2022 | B106: -
A107: Apr 2022 | B107: -
A108: May 2022 | B108: -
A109: Jun 2022 | B109: -
A110: Jul 2022 | B110: -
A111: Aug 2022 | B111: -
A112: Sep 2022 | B112: -
A113: Oct 2022 | B113: -
A114: Nov 2022 | B114: -
A115: Dec 2022 | B115: -
A116: Installed but not yet commissioned | B116: Installed in current reporting year but data not yet expected. No entry required in columns P-Y (will auto-format to grey fill)
A117: EDM not technically feasible at this overflow | B117: WaSC investigation shows EDM currently not technically feasible. No entry required in columns P-Y (will auto-format to grey fill)
A118: EDM to be installed by December 2023 | B118: EDM not yet installed. No entry required in columns P-Y (will auto-format to grey fill)
A120: Total Duration (hr) of all spills | B120: (Column O)
A121: - Total spill duration prior to processing through the 12-24h count method
A123: Counted spills using 12-24h count method | B123: (Column P)
A124: - Spill count post-processed through the 12-24h count method
A126: EDM Operation - % reporting period EDM operational | B126: (Column Q)
A127: - Based on Initial Commissioning Date (Column M) e.g. commissioned in July of reporting year then period Jul-Dec would be 100%; if commissioned in previous reporting year then period Jan-Dec would be 100%
A128: - e.g. commissioned in September of reporting year then 100% reporting period would be Sep.-Dec.
A129: - e.g. commissioned in any previous reporting year then 100% reporting period would be Jan.-Dec.
A130: - See the more detailed User Guide (pdf) for further information & examples
A132: EDM Operation - Reporting % - Primary Reason <90% | B132: (Column R)
A133: - Core reason why EDM may not have been operational <90.0% of period (Column Q)
A134: - Select primary reason only
A135: - Category must be selected when period of EDM operation (Column Q) is less than 90.0%. Optional to complete this column when period of EDM operation is 90.0% or over
A136: - See the more detailed User Guide (pdf) for table of definitions (page 9)
A137: Drop-down options Column R:
A138: Access - Unable to retrieve data from non-telemetry data logger (NB: not to be used for delayed access to fix existing fault) | B138: When access causes inability to retrieve data; e.g. landowner permission. Consider core reason – if caused by poor installation or design then select “Installation set-up/design issue” category instead. Not to be used for delayed access t fix existing operational fault
A139: Capital / maintenance works affect EDM operation | B139: Where planned works affect EDM operation. Consider core reason – if caused by poor installation or design then select “Installation set-up/design issue” category instead
A140: Comms failure / issue | B140: Any part of communication failure; e.g. intermittent signal or antenna damage. Consider core reason – if caused by poor installation or design then select “Installation set-up/design issue” category instead. Similar if comms loss caused by power failure – select “Power failure / issue” instead
A141: Installation set-up/design issue | B141: When installation or design (e.g. choice of location) affects EDM operability. E.g. Original design location cannot distinguish between two overflows & original EDM needs to be relocated to more representative point. E.g. Original design location affected by river ingress & EDM requires relocation. E.g. Alternative monitor type required
A142: Power failure / issue | B142: Any part of power failure; e.g. loss of mains supply / battery fault. Consider core reason – if caused by cutting through cable then select “Capital / maintenance works” category instead
A143: Sensor failure / issue | B143: Any part of sensor failure; e.g. water ingress to connection between sensor & logger. Consider core reason – if water ingress caused by poor choice of location for installation & requires adjustment then select “Installation set-up/design issue” category instead
A144: Telemetry or data archiving failure / issue | B144: Any part of telemetry failure; e.g. dial-in or storage/sending of data problems. Consider core reason – if archiving problem caused by power fault or incorrect installation then use “Power failure / issue” or ”Installation set-up/design issue” categories respectively. Similar if data transfer caused by intermittent signal – select “Comms failure / issue” instead
A145: No longer operational as an overflow - permit revoked or to be revoked | B145: Use even if permit revoked within-year. If permitted existed at any point during reporting period then overflow must be included in the return. At some point in the year overflow no longer had the ability to spill to the environment. • If selected, please select relevant drop-down in column V to reflect the month the overflow no longer had the potential to spill to the environment
A147: Reporting % - Action taken / planned - Status & Timeframe | B147: (Column S)
A148: - Indicate whether action has already been taken / is planned to be taken, or whether there is an ongoing investigation to identify the appropriate action
A149: - Which month this activity was completed / is planned
A150: - See the more detailed User Guide (Word format) for table of definitions (page 10)
A151: Drop-down options Column R:
A152: Scheduled | B152: Appropriate operational action to address <90% EDM operation is planned
A153: Resolved - January | B153: Appropriate operational action has already been taken & issue affecting EDM operation resolved
A154: Resolved - Feburary | B154: As above
A155: Resolved - March | B155: As above
A156: Resolved - April | B156: As above
A157: Resolved - May | B157: As above
A158: Resolved - June | B158: As above
A159: Resolved - July | B159: As above
A160: Resolved - August | B160: As above
A161: Resolved - September | B161: As above
A162: Resolved - October | B162: As above
A163: Resolved - November | B163: As above
A164: Resolved - December | B164: As above
A165: Resolved - January after reporting year | B165: Appropriate operational action has already been taken before EDM Annual Return submission & issue affecting EDM operation resolved
A166: Resolved - February after reporting year | B166: Appropriate operational action has already been taken before EDM Annual Return submission & issue affecting EDM operation resolved
A167: N/A - Ongoing investigation | B167: Appropriate action not yet identified
A168: N/A - Overflow no longer spilling to environment – from mmm (month) | B168: Use when selection in Column U is “No longer operational as an overflow – permit revoked or to be revoked”

Sheet EDM EO Annual Return
A1: EDM EMERGENCY OVERFLOW REGULATORY ANNUAL RETURN | R1: Complete columns R & S when data in column Q is <90.0%
A2: Water Company Name | B2: Site Name (EA Consents Database) | C2: Site Name (WaSC operational) [optional] | D2: EA Permit Reference (EA Consents Database) | E2: WaSC Supplementary Permit Ref. [optional] | F2: Activity Reference on Permit | G2: Storm Discharge Asset Type | H2: Outlet Discharge NGR (EA Consents Database) | I2: WFD Waterbody ID (Cycle 2) (discharge outlet) | J2: WFD Waterbody Catchment Name (Cycle 2) (discharge outlet) | K2: Receiving Water / Environment (common name) (EA Consents Database) | L2: Shellfish Water (only populate for storm overflow with a Shellfish Water EDM requirement) | M2: Bathing Water (only populate for storm overflow with a Bathing Water EDM requirement) | N2: Initial EDM Commission Date | O2: Total Duration (hrs) all spills prior to processing through 12-24h count method | P2: Counted spills using 12-24h count method | Q2: EDM Operation - % of reporting period EDM operational | R2: EDM Operation - Reporting % - Primary Reason <90% | S2: EDM Operation - Action taken / planned - Status & timeframe
A3: Dwr Cymru Welsh Water | C3: BODENHAM MILLCROFT | E3: Unpermitted-73341 | G3: Emergency Overflow | H3: SO5419651096 | I3: GB109055036790 | J3: Lugg - conf R Arrow to conf R Wye | K3: TRIBUTARY OF RIVER LUGG | N3: Commissioned in 2019 - full year data expected | O3: 0 | P3: 0 | Q3: 100
A4: Dwr Cymru Welsh Water | C4: BODENHAM MOOR | E4: Unpermitted-73340 | G4: Emergency Overflow | H4: SO5446750317 | I4: GB109055036740 | J4: Bodenham Bk - source to conf R Lugg | K4: TRIBUTARY OF RIVER LUGG | N4: Commissioned in 2019 - full year data expected | O4: 83 | P4: 13 | Q4: 99.96
A5: Dwr Cymru Welsh Water | B5: PLOUGH LANE EAST PUMPING STATION | D5: CM0185401 | E5: CM0185401 | G5: Emergency Overflow | H5: SJ4599165228 | I5: GB112068060280 | J5: Gowy and tribs (Source to Milton Brook) | K5: DITCH | N5: Commissioned in 2017 - full year data expected | O5: 0.5 | P5: 2 | Q5: 99.97
A6: Dwr Cymru Welsh Water | B6: GREAT HOUGHBROOK PS ADJACENT TO FOR | D6: AN0379401 | E6: AN0379401 | G6: Emergency Overflow | H6: SO5957016879 | I6: GB109055037111 | J6: Wye - conf Walford Bk to Bigsweir Br | K6: RIVER WYE | N6: Commissioned in 2017 - full year data expected | O6: 1.75 | P6: 2 | Q6: 47.66 | R6: Comms failure / issue | S6: N/A - Ongoing investigation
A7: Dwr Cymru Welsh Water | B7: LEYMANS FIELD PS BRAEMAR GARDEN | D7: AN0270801 | E7: AN0270801 | G7: Emergency Overflow | H7: SO53533888 | I7: GB109055037113 | J7: Wye - Bredwardine Br to Hampton Bishop | K7: RIVER WYE | N7: Commissioned in 2018 - full year data expected | O7: 0 | P7: 0 | Q7: 99.93
A8: Dwr Cymru Welsh Water | B8: MALPAS SUNNYSIDE PS | D8: CM0191301 | E8: CM0191301 | G8: Emergency Overflow | H8: SJ4746646666 | I8: GB111067052120 | J8: Aldford Brook | K8: UNNAMED WATERCOURSE | N8: Commissioned in 2019 - full year data expected | O8: 289 | P8: 21 | Q8: 99.84
A9: Dwr Cymru Welsh Water | B9: MUCH DEWCHURCH NEW STW OS PARCEL 24 | D9: AN0231302 | E9: AN0231302 | G9: Emergency Overflow | H9: SO4830031320 | I9: GB109055036840 | J9: Worm Bk - source to confl R Dore | K9: WORM BROOK | N9: Commissioned in 2018 - full year data expected | O9: 208 | P9: 22 | Q9: 99.98
A10: Dwr Cymru Welsh Water | B10: PARKGATE ROAD PUMPING STATION, CHESTER | D10: CG0317601 | E10: CG0317601 | G10: Emergency Overflow | H10: SJ3947068540 | I10: GB111067056930 | J10: Finchetts Gutter | K10: HIGHFIELD DRAIN | N10: Commissioned in 2019 - full year data expected | O10: 37.75 | P10: 12 | Q10: 97.71
A11: Dwr Cymru Welsh Water | B11: Longtown STW PS | D11: AN0121901 | E11: AN0121901 | G11: Emergency Overflow | H11: SO3270328105 | I11: GB109055036820 | J11: Olchon Bk - source to conf R Monnow | K11: OLCHON BROOK | N11: Commissioned in 2020 - full year data expected | O11: 69.5 | P11: 10 | Q11: 99.98
A12: Dwr Cymru Welsh Water | C12: LUSTON VILLAGE | E12: Unpermitted-33630 | G12: Emergency Overflow | H12: SO4865563374 | I12: GB109055042000 | J12: Ridgemoor Bk - source to conf R Lugg | K12: TRIBUTARY OF RIDGEMOOR BROOK | N12: Commissioned in 2019 - full year data expected | O12: 1.75 | P12: 1 | Q12: 99.99
A13: Dwr Cymru Welsh Water | C13: Yarpole SPS | E13: Unpermitted-73026 | G13: Emergency Overflow | H13: SO4715564729 | I13: GB109055042000 | J13: Ridgemoor Bk - source to conf R Lugg | K13: Unnamed drain | N13: Commissioned in 2020 - full year data expected | O13: 77.5 | P13: 12 | Q13: 97.14
A14: Dwr Cymru Welsh Water | C14: Lyonshall WwTW Storm | E14: Unpermitted-74961 | G14: Emergency Overflow | H14: SO3425755752 | I14: GB109055041820 | J14: Curl Bk - source to conf R Arrow | K14: Curl Brook | N14: Commissioned in 2020 - full year data expected | O14: 17 | P14: 8 | Q14: 100
A15: Dwr Cymru Welsh Water | C15: Kingsland WwTW CSO | E15: Unpermitted-33606 | G15: Emergency Overflow | H15: SO 45380 60530 | I15: GB109055041940 | J15: Pinsley Bk - source to conf R Lugg | K15: PINSLEY BROOK | N15: Commissioned in 2020 - full year data expected | O15: 163.25 | P15: 31 | Q15: 99.97

Sheet FORMATTING KEY
A1: KEY
A2: This cell should not be populated
A3: This entry is not valid. The entry must match the relevant drop down options. See Tab "Drop Downs - EO"
A4: This entry is not valid. See table to the right for invalid entry types for each column | C4: All Cells - except Columns L (Shellfish Water) and Column M (Bathing Water) | D4: Column O - Total Duration | E4: Column P - Counted Spills | F4: Column Q - % of reporting period EDM operational
C5: Cell equals "NA" or "N/A" | D5: Cell contains text | E5: Cell contains text | F5: Cell contains text
C6: Cell contains "#" | D6: Value is more than 8760 | E6: Value is more than 365.5
C7: Cell equals "#N/A" | D7: Value is more than (Spill Count x 24)+12

Sheet Drop Downs - EO
A1: Column A | B1: Column G | C1: Column N | D1: Column R | E1: Column S
A2: Water Company Name | B2: Storm discharge asset type | C2: Initial EDM Commission Date | D2: EDM Operation - Reporting percentage - Primary Reason <90% | E2: EDM Operation - Action taken / planned - Status & Timeframe
A3: Thames Water | B3: Emergency Overflow | C3: Commissioned pre-2016 - full year data expected | D3: Access - Unable to retrieve data from non-telemetry data logger (NB: not to be used for delayed access to fix existing fault) | E3: Scheduled
A4: Anglian Water | C4: Commissioned in 2016 - full year data expected | D4: Capital / maintenance works affect EDM operation | E4: Resolved - Jan
A5: Yorkshire Water | C5: Commissioned in 2017 - full year data expected | D5: Comms failure / issue | E5: Resolved - Feb
A6: Dwr Cymru Welsh Water | C6: Commissioned in 2018 - full year data expected | D6: Installation set-up/design issue | E6: Resolved - Mar
A7: Northumbrian Water | C7: Commissioned in 2019 - full year data expected | D7: Power failure / issue | E7: Resolved - Apr
A8: Severn Trent Water | C8: Commissioned in 2020 - full year data expected | D8: Sensor failure / issue | E8: Resolved - May
A9: Southern Water | C9: Commissioned in 2021 - full year data expected | D9: Telemetry or data archiving failure / issue | E9: Resolved - Jun
A10: South West Water | C10: Jan 2022 | D10: No longer operational as an overflow - permit revoked or to be revoked | E10: Resolved - Jul
A11: United Utilities | C11: Feb 2022 | E11: Resolved - Aug
A12: Wessex Water | C12: Mar 2022 | E12: Resolved - Sep
C13: Apr 2022 | E13: Resolved - Oct
C14: May 2022 | E14: Resolved - Nov
C15: Jun 2022 | E15: Resolved - Dec
C16: Jul 2022 | E16: Resolved - January after reporting year
C17: Aug 2022 | E17: Resolved - February after reporting year
C18: Sep 2022 | E18: N/A - Ongoing investigation
C19: Oct 2022 | E19: Overflow no longer spilling to environment - from Jan
C20: Nov 2022 | E20: Overflow no longer spilling to environment - from Feb
C21: Dec 2022 | E21: Overflow no longer spilling to environment - from Mar
C22: Installed but not yet commissioned | E22: Overflow no longer spilling to environment - from Apr
C23: EDM to be installed by December 2023 | E23: Overflow no longer spilling to environment - from May
C24: EDM not technically feasible at this overflow | E24: Overflow no longer spilling to environment - from Jun
E25: Overflow no longer spilling to environment - from Jul
E26: Overflow no longer spilling to environment - from Aug
E27: Overflow no longer spilling to environment - from Sep
E28: Overflow no longer spilling to environment - from Oct
E29: Overflow no longer spilling to environment - from Nov
E30: Overflow no longer spilling to environment - from Dec

Sheet % Conversion (hidden)
A2: EDM Operation - % of reporting period EDM operational Conversion
A3: =IF(OR(CELL("format",'EDM EO Annual Return'!Q3)="P0",CELL("format",'EDM EO Annual Return'!Q3)="P1",CELL("format",'EDM EO Annual Return'!Q3)="P2",CELL("format",'EDM EO Annual Return'!Q3)="P3",CELL("format",'EDM EO Annual Return'!Q3)="P4"),'EDM EO Annual Return'!Q3*100,'EDM EO Annual Return'!Q3) -> 100
A4: =IF(OR(CELL("format",'EDM EO Annual Return'!Q4)="P0",CELL("format",'EDM EO Annual Return'!Q4)="P1",CELL("format",'EDM EO Annual Return'!Q4)="P2",CELL("format",'EDM EO Annual Return'!Q4)="P3",CELL("format",'EDM EO Annual Return'!Q4)="P4"),'EDM EO Annual Return'!Q4*100,'EDM EO Annual Return'!Q4) -> 99.96
A5: =IF(OR(CELL("format",'EDM EO Annual Return'!Q5)="P0",CELL("format",'EDM EO Annual Return'!Q5)="P1",CELL("format",'EDM EO Annual Return'!Q5)="P2",CELL("format",'EDM EO Annual Return'!Q5)="P3",CELL("format",'EDM EO Annual Return'!Q5)="P4"),'EDM EO Annual Return'!Q5*100,'EDM EO Annual Return'!Q5) -> 99.97
A6: =IF(OR(CELL("format",'EDM EO Annual Return'!Q6)="P0",CELL("format",'EDM EO Annual Return'!Q6)="P1",CELL("format",'EDM EO Annual Return'!Q6)="P2",CELL("format",'EDM EO Annual Return'!Q6)="P3",CELL("format",'EDM EO Annual Return'!Q6)="P4"),'EDM EO Annual Return'!Q6*100,'EDM EO Annual Return'!Q6) -> 47.66
A7: =IF(OR(CELL("format",'EDM EO Annual Return'!Q7)="P0",CELL("format",'EDM EO Annual Return'!Q7)="P1",CELL("format",'EDM EO Annual Return'!Q7)="P2",CELL("format",'EDM EO Annual Return'!Q7)="P3",CELL("format",'EDM EO Annual Return'!Q7)="P4"),'EDM EO Annual Return'!Q7*100,'EDM EO Annual Return'!Q7) -> 99.93
A8: =IF(OR(CELL("format",'EDM EO Annual Return'!Q8)="P0",CELL("format",'EDM EO Annual Return'!Q8)="P1",CELL("format",'EDM EO Annual Return'!Q8)="P2",CELL("format",'EDM EO Annual Return'!Q8)="P3",CELL("format",'EDM EO Annual Return'!Q8)="P4"),'EDM EO Annual Return'!Q8*100,'EDM EO Annual Return'!Q8) -> 99.84
A9: =IF(OR(CELL("format",'EDM EO Annual Return'!Q9)="P0",CELL("format",'EDM EO Annual Return'!Q9)="P1",CELL("format",'EDM EO Annual Return'!Q9)="P2",CELL("format",'EDM EO Annual Return'!Q9)="P3",CELL("format",'EDM EO Annual Return'!Q9)="P4"),'EDM EO Annual Return'!Q9*100,'EDM EO Annual Return'!Q9) -> 99.98
A10: =IF(OR(CELL("format",'EDM EO Annual Return'!Q10)="P0",CELL("format",'EDM EO Annual Return'!Q10)="P1",CELL("format",'EDM EO Annual Return'!Q10)="P2",CELL("format",'EDM EO Annual Return'!Q10)="P3",CELL("format",'EDM EO Annual Return'!Q10)="P4"),'EDM EO Annual Return'!Q10*100,'EDM EO Annual Return'!Q10) -> 97.71
A11: =IF(OR(CELL("format",'EDM EO Annual Return'!Q11)="P0",CELL("format",'EDM EO Annual Return'!Q11)="P1",CELL("format",'EDM EO Annual Return'!Q11)="P2",CELL("format",'EDM EO Annual Return'!Q11)="P3",CELL("format",'EDM EO Annual Return'!Q11)="P4"),'EDM EO Annual Return'!Q11*100,'EDM EO Annual Return'!Q11) -> 99.98
A12: =IF(OR(CELL("format",'EDM EO Annual Return'!Q12)="P0",CELL("format",'EDM EO Annual Return'!Q12)="P1",CELL("format",'EDM EO Annual Return'!Q12)="P2",CELL("format",'EDM EO Annual Return'!Q12)="P3",CELL("format",'EDM EO Annual Return'!Q12)="P4"),'EDM EO Annual Return'!Q12*100,'EDM EO Annual Return'!Q12) -> 99.99
A13: =IF(OR(CELL("format",'EDM EO Annual Return'!Q13)="P0",CELL("format",'EDM EO Annual Return'!Q13)="P1",CELL("format",'EDM EO Annual Return'!Q13)="P2",CELL("format",'EDM EO Annual Return'!Q13)="P3",CELL("format",'EDM EO Annual Return'!Q13)="P4"),'EDM EO Annual Return'!Q13*100,'EDM EO Annual Return'!Q13) -> 97.14
A14: =IF(OR(CELL("format",'EDM EO Annual Return'!Q14)="P0",CELL("format",'EDM EO Annual Return'!Q14)="P1",CELL("format",'EDM EO Annual Return'!Q14)="P2",CELL("format",'EDM EO Annual Return'!Q14)="P3",CELL("format",'EDM EO Annual Return'!Q14)="P4"),'EDM EO Annual Return'!Q14*100,'EDM EO Annual Return'!Q14) -> 100
A15: =IF(OR(CELL("format",'EDM EO Annual Return'!Q15)="P0",CELL("format",'EDM EO Annual Return'!Q15)="P1",CELL("format",'EDM EO Annual Return'!Q15)="P2",CELL("format",'EDM EO Annual Return'!Q15)="P3",CELL("format",'EDM EO Annual Return'!Q15)="P4"),'EDM EO Annual Return'!Q15*100,'EDM EO Annual Return'!Q15) -> 99.97
A16: =IF(OR(CELL("format",'EDM EO Annual Return'!Q16)="P0",CELL("format",'EDM EO Annual Return'!Q16)="P1",CELL("format",'EDM EO Annual Return'!Q16)="P2",CELL("format",'EDM EO Annual Return'!Q16)="P3",CELL("format",'EDM EO Annual Return'!Q16)="P4"),'EDM EO Annual Return'!Q16*100,'EDM EO Annual Return'!Q16) -> 0
A17: =IF(OR(CELL("format",'EDM EO Annual Return'!Q17)="P0",CELL("format",'EDM EO Annual Return'!Q17)="P1",CELL("format",'EDM EO Annual Return'!Q17)="P2",CELL("format",'EDM EO Annual Return'!Q17)="P3",CELL("format",'EDM EO Annual Return'!Q17)="P4"),'EDM EO Annual Return'!Q17*100,'EDM EO Annual Return'!Q17) -> 0
A18: =IF(OR(CELL("format",'EDM EO Annual Return'!Q18)="P0",CELL("format",'EDM EO Annual Return'!Q18)="P1",CELL("format",'EDM EO Annual Return'!Q18)="P2",CELL("format",'EDM EO Annual Return'!Q18)="P3",CELL("format",'EDM EO Annual Return'!Q18)="P4"),'EDM EO Annual Return'!Q18*100,'EDM EO Annual Return'!Q18) -> 0
A19: =IF(OR(CELL("format",'EDM EO Annual Return'!Q19)="P0",CELL("format",'EDM EO Annual Return'!Q19)="P1",CELL("format",'EDM EO Annual Return'!Q19)="P2",CELL("format",'EDM EO Annual Return'!Q19)="P3",CELL("format",'EDM EO Annual Return'!Q19)="P4"),'EDM EO Annual Return'!Q19*100,'EDM EO Annual Return'!Q19) -> 0
A20: =IF(OR(CELL("format",'EDM EO Annual Return'!Q20)="P0",CELL("format",'EDM EO Annual Return'!Q20)="P1",CELL("format",'EDM EO Annual Return'!Q20)="P2",CELL("format",'EDM EO Annual Return'!Q20)="P3",CELL("format",'EDM EO Annual Return'!Q20)="P4"),'EDM EO Annual Return'!Q20*100,'EDM EO Annual Return'!Q20) -> 0
A21: =IF(OR(CELL("format",'EDM EO Annual Return'!Q21)="P0",CELL("format",'EDM EO Annual Return'!Q21)="P1",CELL("format",'EDM EO Annual Return'!Q21)="P2",CELL("format",'EDM EO Annual Return'!Q21)="P3",CELL("format",'EDM EO Annual Return'!Q21)="P4"),'EDM EO Annual Return'!Q21*100,'EDM EO Annual Return'!Q21) -> 0
A22: =IF(OR(CELL("format",'EDM EO Annual Return'!Q22)="P0",CELL("format",'EDM EO Annual Return'!Q22)="P1",CELL("format",'EDM EO Annual Return'!Q22)="P2",CELL("format",'EDM EO Annual Return'!Q22)="P3",CELL("format",'EDM EO Annual Return'!Q22)="P4"),'EDM EO Annual Return'!Q22*100,'EDM EO Annual Return'!Q22) -> 0
A23: =IF(OR(CELL("format",'EDM EO Annual Return'!Q23)="P0",CELL("format",'EDM EO Annual Return'!Q23)="P1",CELL("format",'EDM EO Annual Return'!Q23)="P2",CELL("format",'EDM EO Annual Return'!Q23)="P3",CELL("format",'EDM EO Annual Return'!Q23)="P4"),'EDM EO Annual Return'!Q23*100,'EDM EO Annual Return'!Q23) -> 0
A24: =IF(OR(CELL("format",'EDM EO Annual Return'!Q24)="P0",CELL("format",'EDM EO Annual Return'!Q24)="P1",CELL("format",'EDM EO Annual Return'!Q24)="P2",CELL("format",'EDM EO Annual Return'!Q24)="P3",CELL("format",'EDM EO Annual Return'!Q24)="P4"),'EDM EO Annual Return'!Q24*100,'EDM EO Annual Return'!Q24) -> 0
A25: =IF(OR(CELL("format",'EDM EO Annual Return'!Q25)="P0",CELL("format",'EDM EO Annual Return'!Q25)="P1",CELL("format",'EDM EO Annual Return'!Q25)="P2",CELL("format",'EDM EO Annual Return'!Q25)="P3",CELL("format",'EDM EO Annual Return'!Q25)="P4"),'EDM EO Annual Return'!Q25*100,'EDM EO Annual Return'!Q25) -> 0
A26: =IF(OR(CELL("format",'EDM EO Annual Return'!Q26)="P0",CELL("format",'EDM EO Annual Return'!Q26)="P1",CELL("format",'EDM EO Annual Return'!Q26)="P2",CELL("format",'EDM EO Annual Return'!Q26)="P3",CELL("format",'EDM EO Annual Return'!Q26)="P4"),'EDM EO Annual Return'!Q26*100,'EDM EO Annual Return'!Q26) -> 0
A27: =IF(OR(CELL("format",'EDM EO Annual Return'!Q27)="P0",CELL("format",'EDM EO Annual Return'!Q27)="P1",CELL("format",'EDM EO Annual Return'!Q27)="P2",CELL("format",'EDM EO Annual Return'!Q27)="P3",CELL("format",'EDM EO Annual Return'!Q27)="P4"),'EDM EO Annual Return'!Q27*100,'EDM EO Annual Return'!Q27) -> 0
A28: =IF(OR(CELL("format",'EDM EO Annual Return'!Q28)="P0",CELL("format",'EDM EO Annual Return'!Q28)="P1",CELL("format",'EDM EO Annual Return'!Q28)="P2",CELL("format",'EDM EO Annual Return'!Q28)="P3",CELL("format",'EDM EO Annual Return'!Q28)="P4"),'EDM EO Annual Return'!Q28*100,'EDM EO Annual Return'!Q28) -> 0
A29: =IF(OR(CELL("format",'EDM EO Annual Return'!Q29)="P0",CELL("format",'EDM EO Annual Return'!Q29)="P1",CELL("format",'EDM EO Annual Return'!Q29)="P2",CELL("format",'EDM EO Annual Return'!Q29)="P3",CELL("format",'EDM EO Annual Return'!Q29)="P4"),'EDM EO Annual Return'!Q29*100,'EDM EO Annual Return'!Q29) -> 0
A30: =IF(OR(CELL("format",'EDM EO Annual Return'!Q30)="P0",CELL("format",'EDM EO Annual Return'!Q30)="P1",CELL("format",'EDM EO Annual Return'!Q30)="P2",CELL("format",'EDM EO Annual Return'!Q30)="P3",CELL("format",'EDM EO Annual Return'!Q30)="P4"),'EDM EO Annual Return'!Q30*100,'EDM EO Annual Return'!Q30) -> 0
A31: =IF(OR(CELL("format",'EDM EO Annual Return'!Q31)="P0",CELL("format",'EDM EO Annual Return'!Q31)="P1",CELL("format",'EDM EO Annual Return'!Q31)="P2",CELL("format",'EDM EO Annual Return'!Q31)="P3",CELL("format",'EDM EO Annual Return'!Q31)="P4"),'EDM EO Annual Return'!Q31*100,'EDM EO Annual Return'!Q31) -> 0
A32: =IF(OR(CELL("format",'EDM EO Annual Return'!Q32)="P0",CELL("format",'EDM EO Annual Return'!Q32)="P1",CELL("format",'EDM EO Annual Return'!Q32)="P2",CELL("format",'EDM EO Annual Return'!Q32)="P3",CELL("format",'EDM EO Annual Return'!Q32)="P4"),'EDM EO Annual Return'!Q32*100,'EDM EO Annual Return'!Q32) -> 0
A33: =IF(OR(CELL("format",'EDM EO Annual Return'!Q33)="P0",CELL("format",'EDM EO Annual Return'!Q33)="P1",CELL("format",'EDM EO Annual Return'!Q33)="P2",CELL("format",'EDM EO Annual Return'!Q33)="P3",CELL("format",'EDM EO Annual Return'!Q33)="P4"),'EDM EO Annual Return'!Q33*100,'EDM EO Annual Return'!Q33) -> 0
A34: =IF(OR(CELL("format",'EDM EO Annual Return'!Q34)="P0",CELL("format",'EDM EO Annual Return'!Q34)="P1",CELL("format",'EDM EO Annual Return'!Q34)="P2",CELL("format",'EDM EO Annual Return'!Q34)="P3",CELL("format",'EDM EO Annual Return'!Q34)="P4"),'EDM EO Annual Return'!Q34*100,'EDM EO Annual Return'!Q34) -> 0
A35: =IF(OR(CELL("format",'EDM EO Annual Return'!Q35)="P0",CELL("format",'EDM EO Annual Return'!Q35)="P1",CELL("format",'EDM EO Annual Return'!Q35)="P2",CELL("format",'EDM EO Annual Return'!Q35)="P3",CELL("format",'EDM EO Annual Return'!Q35)="P4"),'EDM EO Annual Return'!Q35*100,'EDM EO Annual Return'!Q35) -> 0
A36: =IF(OR(CELL("format",'EDM EO Annual Return'!Q36)="P0",CELL("format",'EDM EO Annual Return'!Q36)="P1",CELL("format",'EDM EO Annual Return'!Q36)="P2",CELL("format",'EDM EO Annual Return'!Q36)="P3",CELL("format",'EDM EO Annual Return'!Q36)="P4"),'EDM EO Annual Return'!Q36*100,'EDM EO Annual Return'!Q36) -> 0
A37: =IF(OR(CELL("format",'EDM EO Annual Return'!Q37)="P0",CELL("format",'EDM EO Annual Return'!Q37)="P1",CELL("format",'EDM EO Annual Return'!Q37)="P2",CELL("format",'EDM EO Annual Return'!Q37)="P3",CELL("format",'EDM EO Annual Return'!Q37)="P4"),'EDM EO Annual Return'!Q37*100,'EDM EO Annual Return'!Q37) -> 0
A38: =IF(OR(CELL("format",'EDM EO Annual Return'!Q38)="P0",CELL("format",'EDM EO Annual Return'!Q38)="P1",CELL("format",'EDM EO Annual Return'!Q38)="P2",CELL("format",'EDM EO Annual Return'!Q38)="P3",CELL("format",'EDM EO Annual Return'!Q38)="P4"),'EDM EO Annual Return'!Q38*100,'EDM EO Annual Return'!Q38) -> 0
A39: =IF(OR(CELL("format",'EDM EO Annual Return'!Q39)="P0",CELL("format",'EDM EO Annual Return'!Q39)="P1",CELL("format",'EDM EO Annual Return'!Q39)="P2",CELL("format",'EDM EO Annual Return'!Q39)="P3",CELL("format",'EDM EO Annual Return'!Q39)="P4"),'EDM EO Annual Return'!Q39*100,'EDM EO Annual Return'!Q39) -> 0
A40: =IF(OR(CELL("format",'EDM EO Annual Return'!Q40)="P0",CELL("format",'EDM EO Annual Return'!Q40)="P1",CELL("format",'EDM EO Annual Return'!Q40)="P2",CELL("format",'EDM EO Annual Return'!Q40)="P3",CELL("format",'EDM EO Annual Return'!Q40)="P4"),'EDM EO Annual Return'!Q40*100,'EDM EO Annual Return'!Q40) -> 0
A41: =IF(OR(CELL("format",'EDM EO Annual Return'!Q41)="P0",CELL("format",'EDM EO Annual Return'!Q41)="P1",CELL("format",'EDM EO Annual Return'!Q41)="P2",CELL("format",'EDM EO Annual Return'!Q41)="P3",CELL("format",'EDM EO Annual Return'!Q41)="P4"),'EDM EO Annual Return'!Q41*100,'EDM EO Annual Return'!Q41) -> 0
A42: =IF(OR(CELL("format",'EDM EO Annual Return'!Q42)="P0",CELL("format",'EDM EO Annual Return'!Q42)="P1",CELL("format",'EDM EO Annual Return'!Q42)="P2",CELL("format",'EDM EO Annual Return'!Q42)="P3",CELL("format",'EDM EO Annual Return'!Q42)="P4"),'EDM EO Annual Return'!Q42*100,'EDM EO Annual Return'!Q42) -> 0
A43: =IF(OR(CELL("format",'EDM EO Annual Return'!Q43)="P0",CELL("format",'EDM EO Annual Return'!Q43)="P1",CELL("format",'EDM EO Annual Return'!Q43)="P2",CELL("format",'EDM EO Annual Return'!Q43)="P3",CELL("format",'EDM EO Annual Return'!Q43)="P4"),'EDM EO Annual Return'!Q43*100,'EDM EO Annual Return'!Q43) -> 0
A44: =IF(OR(CELL("format",'EDM EO Annual Return'!Q44)="P0",CELL("format",'EDM EO Annual Return'!Q44)="P1",CELL("format",'EDM EO Annual Return'!Q44)="P2",CELL("format",'EDM EO Annual Return'!Q44)="P3",CELL("format",'EDM EO Annual Return'!Q44)="P4"),'EDM EO Annual Return'!Q44*100,'EDM EO Annual Return'!Q44) -> 0
A45: =IF(OR(CELL("format",'EDM EO Annual Return'!Q45)="P0",CELL("format",'EDM EO Annual Return'!Q45)="P1",CELL("format",'EDM EO Annual Return'!Q45)="P2",CELL("format",'EDM EO Annual Return'!Q45)="P3",CELL("format",'EDM EO Annual Return'!Q45)="P4"),'EDM EO Annual Return'!Q45*100,'EDM EO Annual Return'!Q45) -> 0
A46: =IF(OR(CELL("format",'EDM EO Annual Return'!Q46)="P0",CELL("format",'EDM EO Annual Return'!Q46)="P1",CELL("format",'EDM EO Annual Return'!Q46)="P2",CELL("format",'EDM EO Annual Return'!Q46)="P3",CELL("format",'EDM EO Annual Return'!Q46)="P4"),'EDM EO Annual Return'!Q46*100,'EDM EO Annual Return'!Q46) -> 0
A47: =IF(OR(CELL("format",'EDM EO Annual Return'!Q47)="P0",CELL("format",'EDM EO Annual Return'!Q47)="P1",CELL("format",'EDM EO Annual Return'!Q47)="P2",CELL("format",'EDM EO Annual Return'!Q47)="P3",CELL("format",'EDM EO Annual Return'!Q47)="P4"),'EDM EO Annual Return'!Q47*100,'EDM EO Annual Return'!Q47) -> 0
A48: =IF(OR(CELL("format",'EDM EO Annual Return'!Q48)="P0",CELL("format",'EDM EO Annual Return'!Q48)="P1",CELL("format",'EDM EO Annual Return'!Q48)="P2",CELL("format",'EDM EO Annual Return'!Q48)="P3",CELL("format",'EDM EO Annual Return'!Q48)="P4"),'EDM EO Annual Return'!Q48*100,'EDM EO Annual Return'!Q48) -> 0
A49: =IF(OR(CELL("format",'EDM EO Annual Return'!Q49)="P0",CELL("format",'EDM EO Annual Return'!Q49)="P1",CELL("format",'EDM EO Annual Return'!Q49)="P2",CELL("format",'EDM EO Annual Return'!Q49)="P3",CELL("format",'EDM EO Annual Return'!Q49)="P4"),'EDM EO Annual Return'!Q49*100,'EDM EO Annual Return'!Q49) -> 0
A50: =IF(OR(CELL("format",'EDM EO Annual Return'!Q50)="P0",CELL("format",'EDM EO Annual Return'!Q50)="P1",CELL("format",'EDM EO Annual Return'!Q50)="P2",CELL("format",'EDM EO Annual Return'!Q50)="P3",CELL("format",'EDM EO Annual Return'!Q50)="P4"),'EDM EO Annual Return'!Q50*100,'EDM EO Annual Return'!Q50) -> 0
A51: =IF(OR(CELL("format",'EDM EO Annual Return'!Q51)="P0",CELL("format",'EDM EO Annual Return'!Q51)="P1",CELL("format",'EDM EO Annual Return'!Q51)="P2",CELL("format",'EDM EO Annual Return'!Q51)="P3",CELL("format",'EDM EO Annual Return'!Q51)="P4"),'EDM EO Annual Return'!Q51*100,'EDM EO Annual Return'!Q51) -> 0
A52: =IF(OR(CELL("format",'EDM EO Annual Return'!Q52)="P0",CELL("format",'EDM EO Annual Return'!Q52)="P1",CELL("format",'EDM EO Annual Return'!Q52)="P2",CELL("format",'EDM EO Annual Return'!Q52)="P3",CELL("format",'EDM EO Annual Return'!Q52)="P4"),'EDM EO Annual Return'!Q52*100,'EDM EO Annual Return'!Q52) -> 0
A53: =IF(OR(CELL("format",'EDM EO Annual Return'!Q53)="P0",CELL("format",'EDM EO Annual Return'!Q53)="P1",CELL("format",'EDM EO Annual Return'!Q53)="P2",CELL("format",'EDM EO Annual Return'!Q53)="P3",CELL("format",'EDM EO Annual Return'!Q53)="P4"),'EDM EO Annual Return'!Q53*100,'EDM EO Annual Return'!Q53) -> 0
A54: =IF(OR(CELL("format",'EDM EO Annual Return'!Q54)="P0",CELL("format",'EDM EO Annual Return'!Q54)="P1",CELL("format",'EDM EO Annual Return'!Q54)="P2",CELL("format",'EDM EO Annual Return'!Q54)="P3",CELL("format",'EDM EO Annual Return'!Q54)="P4"),'EDM EO Annual Return'!Q54*100,'EDM EO Annual Return'!Q54) -> 0
A55: =IF(OR(CELL("format",'EDM EO Annual Return'!Q55)="P0",CELL("format",'EDM EO Annual Return'!Q55)="P1",CELL("format",'EDM EO Annual Return'!Q55)="P2",CELL("format",'EDM EO Annual Return'!Q55)="P3",CELL("format",'EDM EO Annual Return'!Q55)="P4"),'EDM EO Annual Return'!Q55*100,'EDM EO Annual Return'!Q55) -> 0
A56: =IF(OR(CELL("format",'EDM EO Annual Return'!Q56)="P0",CELL("format",'EDM EO Annual Return'!Q56)="P1",CELL("format",'EDM EO Annual Return'!Q56)="P2",CELL("format",'EDM EO Annual Return'!Q56)="P3",CELL("format",'EDM EO Annual Return'!Q56)="P4"),'EDM EO Annual Return'!Q56*100,'EDM EO Annual Return'!Q56) -> 0
A57: =IF(OR(CELL("format",'EDM EO Annual Return'!Q57)="P0",CELL("format",'EDM EO Annual Return'!Q57)="P1",CELL("format",'EDM EO Annual Return'!Q57)="P2",CELL("format",'EDM EO Annual Return'!Q57)="P3",CELL("format",'EDM EO Annual Return'!Q57)="P4"),'EDM EO Annual Return'!Q57*100,'EDM EO Annual Return'!Q57) -> 0
A58: =IF(OR(CELL("format",'EDM EO Annual Return'!Q58)="P0",CELL("format",'EDM EO Annual Return'!Q58)="P1",CELL("format",'EDM EO Annual Return'!Q58)="P2",CELL("format",'EDM EO Annual Return'!Q58)="P3",CELL("format",'EDM EO Annual Return'!Q58)="P4"),'EDM EO Annual Return'!Q58*100,'EDM EO Annual Return'!Q58) -> 0
A59: =IF(OR(CELL("format",'EDM EO Annual Return'!Q59)="P0",CELL("format",'EDM EO Annual Return'!Q59)="P1",CELL("format",'EDM EO Annual Return'!Q59)="P2",CELL("format",'EDM EO Annual Return'!Q59)="P3",CELL("format",'EDM EO Annual Return'!Q59)="P4"),'EDM EO Annual Return'!Q59*100,'EDM EO Annual Return'!Q59) -> 0
A60: =IF(OR(CELL("format",'EDM EO Annual Return'!Q60)="P0",CELL("format",'EDM EO Annual Return'!Q60)="P1",CELL("format",'EDM EO Annual Return'!Q60)="P2",CELL("format",'EDM EO Annual Return'!Q60)="P3",CELL("format",'EDM EO Annual Return'!Q60)="P4"),'EDM EO Annual Return'!Q60*100,'EDM EO Annual Return'!Q60) -> 0
A61: =IF(OR(CELL("format",'EDM EO Annual Return'!Q61)="P0",CELL("format",'EDM EO Annual Return'!Q61)="P1",CELL("format",'EDM EO Annual Return'!Q61)="P2",CELL("format",'EDM EO Annual Return'!Q61)="P3",CELL("format",'EDM EO Annual Return'!Q61)="P4"),'EDM EO Annual Return'!Q61*100,'EDM EO Annual Return'!Q61) -> 0
A62: =IF(OR(CELL("format",'EDM EO Annual Return'!Q62)="P0",CELL("format",'EDM EO Annual Return'!Q62)="P1",CELL("format",'EDM EO Annual Return'!Q62)="P2",CELL("format",'EDM EO Annual Return'!Q62)="P3",CELL("format",'EDM EO Annual Return'!Q62)="P4"),'EDM EO Annual Return'!Q62*100,'EDM EO Annual Return'!Q62) -> 0
A63: =IF(OR(CELL("format",'EDM EO Annual Return'!Q63)="P0",CELL("format",'EDM EO Annual Return'!Q63)="P1",CELL("format",'EDM EO Annual Return'!Q63)="P2",CELL("format",'EDM EO Annual Return'!Q63)="P3",CELL("format",'EDM EO Annual Return'!Q63)="P4"),'EDM EO Annual Return'!Q63*100,'EDM EO Annual Return'!Q63) -> 0
A64: =IF(OR(CELL("format",'EDM EO Annual Return'!Q64)="P0",CELL("format",'EDM EO Annual Return'!Q64)="P1",CELL("format",'EDM EO Annual Return'!Q64)="P2",CELL("format",'EDM EO Annual Return'!Q64)="P3",CELL("format",'EDM EO Annual Return'!Q64)="P4"),'EDM EO Annual Return'!Q64*100,'EDM EO Annual Return'!Q64) -> 0
A65: =IF(OR(CELL("format",'EDM EO Annual Return'!Q65)="P0",CELL("format",'EDM EO Annual Return'!Q65)="P1",CELL("format",'EDM EO Annual Return'!Q65)="P2",CELL("format",'EDM EO Annual Return'!Q65)="P3",CELL("format",'EDM EO Annual Return'!Q65)="P4"),'EDM EO Annual Return'!Q65*100,'EDM EO Annual Return'!Q65) -> 0
A66: =IF(OR(CELL("format",'EDM EO Annual Return'!Q66)="P0",CELL("format",'EDM EO Annual Return'!Q66)="P1",CELL("format",'EDM EO Annual Return'!Q66)="P2",CELL("format",'EDM EO Annual Return'!Q66)="P3",CELL("format",'EDM EO Annual Return'!Q66)="P4"),'EDM EO Annual Return'!Q66*100,'EDM EO Annual Return'!Q66) -> 0
A67: =IF(OR(CELL("format",'EDM EO Annual Return'!Q67)="P0",CELL("format",'EDM EO Annual Return'!Q67)="P1",CELL("format",'EDM EO Annual Return'!Q67)="P2",CELL("format",'EDM EO Annual Return'!Q67)="P3",CELL("format",'EDM EO Annual Return'!Q67)="P4"),'EDM EO Annual Return'!Q67*100,'EDM EO Annual Return'!Q67) -> 0
A68: =IF(OR(CELL("format",'EDM EO Annual Return'!Q68)="P0",CELL("format",'EDM EO Annual Return'!Q68)="P1",CELL("format",'EDM EO Annual Return'!Q68)="P2",CELL("format",'EDM EO Annual Return'!Q68)="P3",CELL("format",'EDM EO Annual Return'!Q68)="P4"),'EDM EO Annual Return'!Q68*100,'EDM EO Annual Return'!Q68) -> 0
A69: =IF(OR(CELL("format",'EDM EO Annual Return'!Q69)="P0",CELL("format",'EDM EO Annual Return'!Q69)="P1",CELL("format",'EDM EO Annual Return'!Q69)="P2",CELL("format",'EDM EO Annual Return'!Q69)="P3",CELL("format",'EDM EO Annual Return'!Q69)="P4"),'EDM EO Annual Return'!Q69*100,'EDM EO Annual Return'!Q69) -> 0
A70: =IF(OR(CELL("format",'EDM EO Annual Return'!Q70)="P0",CELL("format",'EDM EO Annual Return'!Q70)="P1",CELL("format",'EDM EO Annual Return'!Q70)="P2",CELL("format",'EDM EO Annual Return'!Q70)="P3",CELL("format",'EDM EO Annual Return'!Q70)="P4"),'EDM EO Annual Return'!Q70*100,'EDM EO Annual Return'!Q70) -> 0
A71: =IF(OR(CELL("format",'EDM EO Annual Return'!Q71)="P0",CELL("format",'EDM EO Annual Return'!Q71)="P1",CELL("format",'EDM EO Annual Return'!Q71)="P2",CELL("format",'EDM EO Annual Return'!Q71)="P3",CELL("format",'EDM EO Annual Return'!Q71)="P4"),'EDM EO Annual Return'!Q71*100,'EDM EO Annual Return'!Q71) -> 0
A72: =IF(OR(CELL("format",'EDM EO Annual Return'!Q72)="P0",CELL("format",'EDM EO Annual Return'!Q72)="P1",CELL("format",'EDM EO Annual Return'!Q72)="P2",CELL("format",'EDM EO Annual Return'!Q72)="P3",CELL("format",'EDM EO Annual Return'!Q72)="P4"),'EDM EO Annual Return'!Q72*100,'EDM EO Annual Return'!Q72) -> 0
A73: =IF(OR(CELL("format",'EDM EO Annual Return'!Q73)="P0",CELL("format",'EDM EO Annual Return'!Q73)="P1",CELL("format",'EDM EO Annual Return'!Q73)="P2",CELL("format",'EDM EO Annual Return'!Q73)="P3",CELL("format",'EDM EO Annual Return'!Q73)="P4"),'EDM EO Annual Return'!Q73*100,'EDM EO Annual Return'!Q73) -> 0
A74: =IF(OR(CELL("format",'EDM EO Annual Return'!Q74)="P0",CELL("format",'EDM EO Annual Return'!Q74)="P1",CELL("format",'EDM EO Annual Return'!Q74)="P2",CELL("format",'EDM EO Annual Return'!Q74)="P3",CELL("format",'EDM EO Annual Return'!Q74)="P4"),'EDM EO Annual Return'!Q74*100,'EDM EO Annual Return'!Q74) -> 0
A75: =IF(OR(CELL("format",'EDM EO Annual Return'!Q75)="P0",CELL("format",'EDM EO Annual Return'!Q75)="P1",CELL("format",'EDM EO Annual Return'!Q75)="P2",CELL("format",'EDM EO Annual Return'!Q75)="P3",CELL("format",'EDM EO Annual Return'!Q75)="P4"),'EDM EO Annual Return'!Q75*100,'EDM EO Annual Return'!Q75) -> 0
A76: =IF(OR(CELL("format",'EDM EO Annual Return'!Q76)="P0",CELL("format",'EDM EO Annual Return'!Q76)="P1",CELL("format",'EDM EO Annual Return'!Q76)="P2",CELL("format",'EDM EO Annual Return'!Q76)="P3",CELL("format",'EDM EO Annual Return'!Q76)="P4"),'EDM EO Annual Return'!Q76*100,'EDM EO Annual Return'!Q76) -> 0
A77: =IF(OR(CELL("format",'EDM EO Annual Return'!Q77)="P0",CELL("format",'EDM EO Annual Return'!Q77)="P1",CELL("format",'EDM EO Annual Return'!Q77)="P2",CELL("format",'EDM EO Annual Return'!Q77)="P3",CELL("format",'EDM EO Annual Return'!Q77)="P4"),'EDM EO Annual Return'!Q77*100,'EDM EO Annual Return'!Q77) -> 0
A78: =IF(OR(CELL("format",'EDM EO Annual Return'!Q78)="P0",CELL("format",'EDM EO Annual Return'!Q78)="P1",CELL("format",'EDM EO Annual Return'!Q78)="P2",CELL("format",'EDM EO Annual Return'!Q78)="P3",CELL("format",'EDM EO Annual Return'!Q78)="P4"),'EDM EO Annual Return'!Q78*100,'EDM EO Annual Return'!Q78) -> 0
A79: =IF(OR(CELL("format",'EDM EO Annual Return'!Q79)="P0",CELL("format",'EDM EO Annual Return'!Q79)="P1",CELL("format",'EDM EO Annual Return'!Q79)="P2",CELL("format",'EDM EO Annual Return'!Q79)="P3",CELL("format",'EDM EO Annual Return'!Q79)="P4"),'EDM EO Annual Return'!Q79*100,'EDM EO Annual Return'!Q79) -> 0
A80: =IF(OR(CELL("format",'EDM EO Annual Return'!Q80)="P0",CELL("format",'EDM EO Annual Return'!Q80)="P1",CELL("format",'EDM EO Annual Return'!Q80)="P2",CELL("format",'EDM EO Annual Return'!Q80)="P3",CELL("format",'EDM EO Annual Return'!Q80)="P4"),'EDM EO Annual Return'!Q80*100,'EDM EO Annual Return'!Q80) -> 0
A81: =IF(OR(CELL("format",'EDM EO Annual Return'!Q81)="P0",CELL("format",'EDM EO Annual Return'!Q81)="P1",CELL("format",'EDM EO Annual Return'!Q81)="P2",CELL("format",'EDM EO Annual Return'!Q81)="P3",CELL("format",'EDM EO Annual Return'!Q81)="P4"),'EDM EO Annual Return'!Q81*100,'EDM EO Annual Return'!Q81) -> 0
A82: =IF(OR(CELL("format",'EDM EO Annual Return'!Q82)="P0",CELL("format",'EDM EO Annual Return'!Q82)="P1",CELL("format",'EDM EO Annual Return'!Q82)="P2",CELL("format",'EDM EO Annual Return'!Q82)="P3",CELL("format",'EDM EO Annual Return'!Q82)="P4"),'EDM EO Annual Return'!Q82*100,'EDM EO Annual Return'!Q82) -> 0
A83: =IF(OR(CELL("format",'EDM EO Annual Return'!Q83)="P0",CELL("format",'EDM EO Annual Return'!Q83)="P1",CELL("format",'EDM EO Annual Return'!Q83)="P2",CELL("format",'EDM EO Annual Return'!Q83)="P3",CELL("format",'EDM EO Annual Return'!Q83)="P4"),'EDM EO Annual Return'!Q83*100,'EDM EO Annual Return'!Q83) -> 0
A84: =IF(OR(CELL("format",'EDM EO Annual Return'!Q84)="P0",CELL("format",'EDM EO Annual Return'!Q84)="P1",CELL("format",'EDM EO Annual Return'!Q84)="P2",CELL("format",'EDM EO Annual Return'!Q84)="P3",CELL("format",'EDM EO Annual Return'!Q84)="P4"),'EDM EO Annual Return'!Q84*100,'EDM EO Annual Return'!Q84) -> 0
A85: =IF(OR(CELL("format",'EDM EO Annual Return'!Q85)="P0",CELL("format",'EDM EO Annual Return'!Q85)="P1",CELL("format",'EDM EO Annual Return'!Q85)="P2",CELL("format",'EDM EO Annual Return'!Q85)="P3",CELL("format",'EDM EO Annual Return'!Q85)="P4"),'EDM EO Annual Return'!Q85*100,'EDM EO Annual Return'!Q85) -> 0
A86: =IF(OR(CELL("format",'EDM EO Annual Return'!Q86)="P0",CELL("format",'EDM EO Annual Return'!Q86)="P1",CELL("format",'EDM EO Annual Return'!Q86)="P2",CELL("format",'EDM EO Annual Return'!Q86)="P3",CELL("format",'EDM EO Annual Return'!Q86)="P4"),'EDM EO Annual Return'!Q86*100,'EDM EO Annual Return'!Q86) -> 0
A87: =IF(OR(CELL("format",'EDM EO Annual Return'!Q87)="P0",CELL("format",'EDM EO Annual Return'!Q87)="P1",CELL("format",'EDM EO Annual Return'!Q87)="P2",CELL("format",'EDM EO Annual Return'!Q87)="P3",CELL("format",'EDM EO Annual Return'!Q87)="P4"),'EDM EO Annual Return'!Q87*100,'EDM EO Annual Return'!Q87) -> 0
A88: =IF(OR(CELL("format",'EDM EO Annual Return'!Q88)="P0",CELL("format",'EDM EO Annual Return'!Q88)="P1",CELL("format",'EDM EO Annual Return'!Q88)="P2",CELL("format",'EDM EO Annual Return'!Q88)="P3",CELL("format",'EDM EO Annual Return'!Q88)="P4"),'EDM EO Annual Return'!Q88*100,'EDM EO Annual Return'!Q88) -> 0
A89: =IF(OR(CELL("format",'EDM EO Annual Return'!Q89)="P0",CELL("format",'EDM EO Annual Return'!Q89)="P1",CELL("format",'EDM EO Annual Return'!Q89)="P2",CELL("format",'EDM EO Annual Return'!Q89)="P3",CELL("format",'EDM EO Annual Return'!Q89)="P4"),'EDM EO Annual Return'!Q89*100,'EDM EO Annual Return'!Q89) -> 0
A90: =IF(OR(CELL("format",'EDM EO Annual Return'!Q90)="P0",CELL("format",'EDM EO Annual Return'!Q90)="P1",CELL("format",'EDM EO Annual Return'!Q90)="P2",CELL("format",'EDM EO Annual Return'!Q90)="P3",CELL("format",'EDM EO Annual Return'!Q90)="P4"),'EDM EO Annual Return'!Q90*100,'EDM EO Annual Return'!Q90) -> 0
A91: =IF(OR(CELL("format",'EDM EO Annual Return'!Q91)="P0",CELL("format",'EDM EO Annual Return'!Q91)="P1",CELL("format",'EDM EO Annual Return'!Q91)="P2",CELL("format",'EDM EO Annual Return'!Q91)="P3",CELL("format",'EDM EO Annual Return'!Q91)="P4"),'EDM EO Annual Return'!Q91*100,'EDM EO Annual Return'!Q91) -> 0
A92: =IF(OR(CELL("format",'EDM EO Annual Return'!Q92)="P0",CELL("format",'EDM EO Annual Return'!Q92)="P1",CELL("format",'EDM EO Annual Return'!Q92)="P2",CELL("format",'EDM EO Annual Return'!Q92)="P3",CELL("format",'EDM EO Annual Return'!Q92)="P4"),'EDM EO Annual Return'!Q92*100,'EDM EO Annual Return'!Q92) -> 0
A93: =IF(OR(CELL("format",'EDM EO Annual Return'!Q93)="P0",CELL("format",'EDM EO Annual Return'!Q93)="P1",CELL("format",'EDM EO Annual Return'!Q93)="P2",CELL("format",'EDM EO Annual Return'!Q93)="P3",CELL("format",'EDM EO Annual Return'!Q93)="P4"),'EDM EO Annual Return'!Q93*100,'EDM EO Annual Return'!Q93) -> 0
A94: =IF(OR(CELL("format",'EDM EO Annual Return'!Q94)="P0",CELL("format",'EDM EO Annual Return'!Q94)="P1",CELL("format",'EDM EO Annual Return'!Q94)="P2",CELL("format",'EDM EO Annual Return'!Q94)="P3",CELL("format",'EDM EO Annual Return'!Q94)="P4"),'EDM EO Annual Return'!Q94*100,'EDM EO Annual Return'!Q94) -> 0
A95: =IF(OR(CELL("format",'EDM EO Annual Return'!Q95)="P0",CELL("format",'EDM EO Annual Return'!Q95)="P1",CELL("format",'EDM EO Annual Return'!Q95)="P2",CELL("format",'EDM EO Annual Return'!Q95)="P3",CELL("format",'EDM EO Annual Return'!Q95)="P4"),'EDM EO Annual Return'!Q95*100,'EDM EO Annual Return'!Q95) -> 0
A96: =IF(OR(CELL("format",'EDM EO Annual Return'!Q96)="P0",CELL("format",'EDM EO Annual Return'!Q96)="P1",CELL("format",'EDM EO Annual Return'!Q96)="P2",CELL("format",'EDM EO Annual Return'!Q96)="P3",CELL("format",'EDM EO Annual Return'!Q96)="P4"),'EDM EO Annual Return'!Q96*100,'EDM EO Annual Return'!Q96) -> 0
A97: =IF(OR(CELL("format",'EDM EO Annual Return'!Q97)="P0",CELL("format",'EDM EO Annual Return'!Q97)="P1",CELL("format",'EDM EO Annual Return'!Q97)="P2",CELL("format",'EDM EO Annual Return'!Q97)="P3",CELL("format",'EDM EO Annual Return'!Q97)="P4"),'EDM EO Annual Return'!Q97*100,'EDM EO Annual Return'!Q97) -> 0
A98: =IF(OR(CELL("format",'EDM EO Annual Return'!Q98)="P0",CELL("format",'EDM EO Annual Return'!Q98)="P1",CELL("format",'EDM EO Annual Return'!Q98)="P2",CELL("format",'EDM EO Annual Return'!Q98)="P3",CELL("format",'EDM EO Annual Return'!Q98)="P4"),'EDM EO Annual Return'!Q98*100,'EDM EO Annual Return'!Q98) -> 0
A99: =IF(OR(CELL("format",'EDM EO Annual Return'!Q99)="P0",CELL("format",'EDM EO Annual Return'!Q99)="P1",CELL("format",'EDM EO Annual Return'!Q99)="P2",CELL("format",'EDM EO Annual Return'!Q99)="P3",CELL("format",'EDM EO Annual Return'!Q99)="P4"),'EDM EO Annual Return'!Q99*100,'EDM EO Annual Return'!Q99) -> 0
A100: =IF(OR(CELL("format",'EDM EO Annual Return'!Q100)="P0",CELL("format",'EDM EO Annual Return'!Q100)="P1",CELL("format",'EDM EO Annual Return'!Q100)="P2",CELL("format",'EDM EO Annual Return'!Q100)="P3",CELL("format",'EDM EO Annual Return'!Q100)="P4"),'EDM EO Annual Return'!Q100*100,'EDM EO Annual Return'!Q100) -> 0
A101: =IF(OR(CELL("format",'EDM EO Annual Return'!Q101)="P0",CELL("format",'EDM EO Annual Return'!Q101)="P1",CELL("format",'EDM EO Annual Return'!Q101)="P2",CELL("format",'EDM EO Annual Return'!Q101)="P3",CELL("format",'EDM EO Annual Return'!Q101)="P4"),'EDM EO Annual Return'!Q101*100,'EDM EO Annual Return'!Q101) -> 0
A102: =IF(OR(CELL("format",'EDM EO Annual Return'!Q102)="P0",CELL("format",'EDM EO Annual Return'!Q102)="P1",CELL("format",'EDM EO Annual Return'!Q102)="P2",CELL("format",'EDM EO Annual Return'!Q102)="P3",CELL("format",'EDM EO Annual Return'!Q102)="P4"),'EDM EO Annual Return'!Q102*100,'EDM EO Annual Return'!Q102) -> 0
A103: =IF(OR(CELL("format",'EDM EO Annual Return'!Q103)="P0",CELL("format",'EDM EO Annual Return'!Q103)="P1",CELL("format",'EDM EO Annual Return'!Q103)="P2",CELL("format",'EDM EO Annual Return'!Q103)="P3",CELL("format",'EDM EO Annual Return'!Q103)="P4"),'EDM EO Annual Return'!Q103*100,'EDM EO Annual Return'!Q103) -> 0
A104: =IF(OR(CELL("format",'EDM EO Annual Return'!Q104)="P0",CELL("format",'EDM EO Annual Return'!Q104)="P1",CELL("format",'EDM EO Annual Return'!Q104)="P2",CELL("format",'EDM EO Annual Return'!Q104)="P3",CELL("format",'EDM EO Annual Return'!Q104)="P4"),'EDM EO Annual Return'!Q104*100,'EDM EO Annual Return'!Q104) -> 0
A105: =IF(OR(CELL("format",'EDM EO Annual Return'!Q105)="P0",CELL("format",'EDM EO Annual Return'!Q105)="P1",CELL("format",'EDM EO Annual Return'!Q105)="P2",CELL("format",'EDM EO Annual Return'!Q105)="P3",CELL("format",'EDM EO Annual Return'!Q105)="P4"),'EDM EO Annual Return'!Q105*100,'EDM EO Annual Return'!Q105) -> 0
A106: =IF(OR(CELL("format",'EDM EO Annual Return'!Q106)="P0",CELL("format",'EDM EO Annual Return'!Q106)="P1",CELL("format",'EDM EO Annual Return'!Q106)="P2",CELL("format",'EDM EO Annual Return'!Q106)="P3",CELL("format",'EDM EO Annual Return'!Q106)="P4"),'EDM EO Annual Return'!Q106*100,'EDM EO Annual Return'!Q106) -> 0
A107: =IF(OR(CELL("format",'EDM EO Annual Return'!Q107)="P0",CELL("format",'EDM EO Annual Return'!Q107)="P1",CELL("format",'EDM EO Annual Return'!Q107)="P2",CELL("format",'EDM EO Annual Return'!Q107)="P3",CELL("format",'EDM EO Annual Return'!Q107)="P4"),'EDM EO Annual Return'!Q107*100,'EDM EO Annual Return'!Q107) -> 0
A108: =IF(OR(CELL("format",'EDM EO Annual Return'!Q108)="P0",CELL("format",'EDM EO Annual Return'!Q108)="P1",CELL("format",'EDM EO Annual Return'!Q108)="P2",CELL("format",'EDM EO Annual Return'!Q108)="P3",CELL("format",'EDM EO Annual Return'!Q108)="P4"),'EDM EO Annual Return'!Q108*100,'EDM EO Annual Return'!Q108) -> 0
A109: =IF(OR(CELL("format",'EDM EO Annual Return'!Q109)="P0",CELL("format",'EDM EO Annual Return'!Q109)="P1",CELL("format",'EDM EO Annual Return'!Q109)="P2",CELL("format",'EDM EO Annual Return'!Q109)="P3",CELL("format",'EDM EO Annual Return'!Q109)="P4"),'EDM EO Annual Return'!Q109*100,'EDM EO Annual Return'!Q109) -> 0
A110: =IF(OR(CELL("format",'EDM EO Annual Return'!Q110)="P0",CELL("format",'EDM EO Annual Return'!Q110)="P1",CELL("format",'EDM EO Annual Return'!Q110)="P2",CELL("format",'EDM EO Annual Return'!Q110)="P3",CELL("format",'EDM EO Annual Return'!Q110)="P4"),'EDM EO Annual Return'!Q110*100,'EDM EO Annual Return'!Q110) -> 0
A111: =IF(OR(CELL("format",'EDM EO Annual Return'!Q111)="P0",CELL("format",'EDM EO Annual Return'!Q111)="P1",CELL("format",'EDM EO Annual Return'!Q111)="P2",CELL("format",'EDM EO Annual Return'!Q111)="P3",CELL("format",'EDM EO Annual Return'!Q111)="P4"),'EDM EO Annual Return'!Q111*100,'EDM EO Annual Return'!Q111) -> 0
A112: =IF(OR(CELL("format",'EDM EO Annual Return'!Q112)="P0",CELL("format",'EDM EO Annual Return'!Q112)="P1",CELL("format",'EDM EO Annual Return'!Q112)="P2",CELL("format",'EDM EO Annual Return'!Q112)="P3",CELL("format",'EDM EO Annual Return'!Q112)="P4"),'EDM EO Annual Return'!Q112*100,'EDM EO Annual Return'!Q112) -> 0
A113: =IF(OR(CELL("format",'EDM EO Annual Return'!Q113)="P0",CELL("format",'EDM EO Annual Return'!Q113)="P1",CELL("format",'EDM EO Annual Return'!Q113)="P2",CELL("format",'EDM EO Annual Return'!Q113)="P3",CELL("format",'EDM EO Annual Return'!Q113)="P4"),'EDM EO Annual Return'!Q113*100,'EDM EO Annual Return'!Q113) -> 0
A114: =IF(OR(CELL("format",'EDM EO Annual Return'!Q114)="P0",CELL("format",'EDM EO Annual Return'!Q114)="P1",CELL("format",'EDM EO Annual Return'!Q114)="P2",CELL("format",'EDM EO Annual Return'!Q114)="P3",CELL("format",'EDM EO Annual Return'!Q114)="P4"),'EDM EO Annual Return'!Q114*100,'EDM EO Annual Return'!Q114) -> 0
A115: =IF(OR(CELL("format",'EDM EO Annual Return'!Q115)="P0",CELL("format",'EDM EO Annual Return'!Q115)="P1",CELL("format",'EDM EO Annual Return'!Q115)="P2",CELL("format",'EDM EO Annual Return'!Q115)="P3",CELL("format",'EDM EO Annual Return'!Q115)="P4"),'EDM EO Annual Return'!Q115*100,'EDM EO Annual Return'!Q115) -> 0
A116: =IF(OR(CELL("format",'EDM EO Annual Return'!Q116)="P0",CELL("format",'EDM EO Annual Return'!Q116)="P1",CELL("format",'EDM EO Annual Return'!Q116)="P2",CELL("format",'EDM EO Annual Return'!Q116)="P3",CELL("format",'EDM EO Annual Return'!Q116)="P4"),'EDM EO Annual Return'!Q116*100,'EDM EO Annual Return'!Q116) -> 0
A117: =IF(OR(CELL("format",'EDM EO Annual Return'!Q117)="P0",CELL("format",'EDM EO Annual Return'!Q117)="P1",CELL("format",'EDM EO Annual Return'!Q117)="P2",CELL("format",'EDM EO Annual Return'!Q117)="P3",CELL("format",'EDM EO Annual Return'!Q117)="P4"),'EDM EO Annual Return'!Q117*100,'EDM EO Annual Return'!Q117) -> 0
A118: =IF(OR(CELL("format",'EDM EO Annual Return'!Q118)="P0",CELL("format",'EDM EO Annual Return'!Q118)="P1",CELL("format",'EDM EO Annual Return'!Q118)="P2",CELL("format",'EDM EO Annual Return'!Q118)="P3",CELL("format",'EDM EO Annual Return'!Q118)="P4"),'EDM EO Annual Return'!Q118*100,'EDM EO Annual Return'!Q118) -> 0
A119: =IF(OR(CELL("format",'EDM EO Annual Return'!Q119)="P0",CELL("format",'EDM EO Annual Return'!Q119)="P1",CELL("format",'EDM EO Annual Return'!Q119)="P2",CELL("format",'EDM EO Annual Return'!Q119)="P3",CELL("format",'EDM EO Annual Return'!Q119)="P4"),'EDM EO Annual Return'!Q119*100,'EDM EO Annual Return'!Q119) -> 0
A120: =IF(OR(CELL("format",'EDM EO Annual Return'!Q120)="P0",CELL("format",'EDM EO Annual Return'!Q120)="P1",CELL("format",'EDM EO Annual Return'!Q120)="P2",CELL("format",'EDM EO Annual Return'!Q120)="P3",CELL("format",'EDM EO Annual Return'!Q120)="P4"),'EDM EO Annual Return'!Q120*100,'EDM EO Annual Return'!Q120) -> 0
A121: =IF(OR(CELL("format",'EDM EO Annual Return'!Q121)="P0",CELL("format",'EDM EO Annual Return'!Q121)="P1",CELL("format",'EDM EO Annual Return'!Q121)="P2",CELL("format",'EDM EO Annual Return'!Q121)="P3",CELL("format",'EDM EO Annual Return'!Q121)="P4"),'EDM EO Annual Return'!Q121*100,'EDM EO Annual Return'!Q121) -> 0
A122: =IF(OR(CELL("format",'EDM EO Annual Return'!Q122)="P0",CELL("format",'EDM EO Annual Return'!Q122)="P1",CELL("format",'EDM EO Annual Return'!Q122)="P2",CELL("format",'EDM EO Annual Return'!Q122)="P3",CELL("format",'EDM EO Annual Return'!Q122)="P4"),'EDM EO Annual Return'!Q122*100,'EDM EO Annual Return'!Q122) -> 0
A123: =IF(OR(CELL("format",'EDM EO Annual Return'!Q123)="P0",CELL("format",'EDM EO Annual Return'!Q123)="P1",CELL("format",'EDM EO Annual Return'!Q123)="P2",CELL("format",'EDM EO Annual Return'!Q123)="P3",CELL("format",'EDM EO Annual Return'!Q123)="P4"),'EDM EO Annual Return'!Q123*100,'EDM EO Annual Return'!Q123) -> 0
A124: =IF(OR(CELL("format",'EDM EO Annual Return'!Q124)="P0",CELL("format",'EDM EO Annual Return'!Q124)="P1",CELL("format",'EDM EO Annual Return'!Q124)="P2",CELL("format",'EDM EO Annual Return'!Q124)="P3",CELL("format",'EDM EO Annual Return'!Q124)="P4"),'EDM EO Annual Return'!Q124*100,'EDM EO Annual Return'!Q124) -> 0
A125: =IF(OR(CELL("format",'EDM EO Annual Return'!Q125)="P0",CELL("format",'EDM EO Annual Return'!Q125)="P1",CELL("format",'EDM EO Annual Return'!Q125)="P2",CELL("format",'EDM EO Annual Return'!Q125)="P3",CELL("format",'EDM EO Annual Return'!Q125)="P4"),'EDM EO Annual Return'!Q125*100,'EDM EO Annual Return'!Q125) -> 0
A126: =IF(OR(CELL("format",'EDM EO Annual Return'!Q126)="P0",CELL("format",'EDM EO Annual Return'!Q126)="P1",CELL("format",'EDM EO Annual Return'!Q126)="P2",CELL("format",'EDM EO Annual Return'!Q126)="P3",CELL("format",'EDM EO Annual Return'!Q126)="P4"),'EDM EO Annual Return'!Q126*100,'EDM EO Annual Return'!Q126) -> 0
A127: =IF(OR(CELL("format",'EDM EO Annual Return'!Q127)="P0",CELL("format",'EDM EO Annual Return'!Q127)="P1",CELL("format",'EDM EO Annual Return'!Q127)="P2",CELL("format",'EDM EO Annual Return'!Q127)="P3",CELL("format",'EDM EO Annual Return'!Q127)="P4"),'EDM EO Annual Return'!Q127*100,'EDM EO Annual Return'!Q127) -> 0
A128: =IF(OR(CELL("format",'EDM EO Annual Return'!Q128)="P0",CELL("format",'EDM EO Annual Return'!Q128)="P1",CELL("format",'EDM EO Annual Return'!Q128)="P2",CELL("format",'EDM EO Annual Return'!Q128)="P3",CELL("format",'EDM EO Annual Return'!Q128)="P4"),'EDM EO Annual Return'!Q128*100,'EDM EO Annual Return'!Q128) -> 0
A129: =IF(OR(CELL("format",'EDM EO Annual Return'!Q129)="P0",CELL("format",'EDM EO Annual Return'!Q129)="P1",CELL("format",'EDM EO Annual Return'!Q129)="P2",CELL("format",'EDM EO Annual Return'!Q129)="P3",CELL("format",'EDM EO Annual Return'!Q129)="P4"),'EDM EO Annual Return'!Q129*100,'EDM EO Annual Return'!Q129) -> 0
A130: =IF(OR(CELL("format",'EDM EO Annual Return'!Q130)="P0",CELL("format",'EDM EO Annual Return'!Q130)="P1",CELL("format",'EDM EO Annual Return'!Q130)="P2",CELL("format",'EDM EO Annual Return'!Q130)="P3",CELL("format",'EDM EO Annual Return'!Q130)="P4"),'EDM EO Annual Return'!Q130*100,'EDM EO Annual Return'!Q130) -> 0
A131: =IF(OR(CELL("format",'EDM EO Annual Return'!Q131)="P0",CELL("format",'EDM EO Annual Return'!Q131)="P1",CELL("format",'EDM EO Annual Return'!Q131)="P2",CELL("format",'EDM EO Annual Return'!Q131)="P3",CELL("format",'EDM EO Annual Return'!Q131)="P4"),'EDM EO Annual Return'!Q131*100,'EDM EO Annual Return'!Q131) -> 0
A132: =IF(OR(CELL("format",'EDM EO Annual Return'!Q132)="P0",CELL("format",'EDM EO Annual Return'!Q132)="P1",CELL("format",'EDM EO Annual Return'!Q132)="P2",CELL("format",'EDM EO Annual Return'!Q132)="P3",CELL("format",'EDM EO Annual Return'!Q132)="P4"),'EDM EO Annual Return'!Q132*100,'EDM EO Annual Return'!Q132) -> 0
A133: =IF(OR(CELL("format",'EDM EO Annual Return'!Q133)="P0",CELL("format",'EDM EO Annual Return'!Q133)="P1",CELL("format",'EDM EO Annual Return'!Q133)="P2",CELL("format",'EDM EO Annual Return'!Q133)="P3",CELL("format",'EDM EO Annual Return'!Q133)="P4"),'EDM EO Annual Return'!Q133*100,'EDM EO Annual Return'!Q133) -> 0
A134: =IF(OR(CELL("format",'EDM EO Annual Return'!Q134)="P0",CELL("format",'EDM EO Annual Return'!Q134)="P1",CELL("format",'EDM EO Annual Return'!Q134)="P2",CELL("format",'EDM EO Annual Return'!Q134)="P3",CELL("format",'EDM EO Annual Return'!Q134)="P4"),'EDM EO Annual Return'!Q134*100,'EDM EO Annual Return'!Q134) -> 0
A135: =IF(OR(CELL("format",'EDM EO Annual Return'!Q135)="P0",CELL("format",'EDM EO Annual Return'!Q135)="P1",CELL("format",'EDM EO Annual Return'!Q135)="P2",CELL("format",'EDM EO Annual Return'!Q135)="P3",CELL("format",'EDM EO Annual Return'!Q135)="P4"),'EDM EO Annual Return'!Q135*100,'EDM EO Annual Return'!Q135) -> 0
A136: =IF(OR(CELL("format",'EDM EO Annual Return'!Q136)="P0",CELL("format",'EDM EO Annual Return'!Q136)="P1",CELL("format",'EDM EO Annual Return'!Q136)="P2",CELL("format",'EDM EO Annual Return'!Q136)="P3",CELL("format",'EDM EO Annual Return'!Q136)="P4"),'EDM EO Annual Return'!Q136*100,'EDM EO Annual Return'!Q136) -> 0
A137: =IF(OR(CELL("format",'EDM EO Annual Return'!Q137)="P0",CELL("format",'EDM EO Annual Return'!Q137)="P1",CELL("format",'EDM EO Annual Return'!Q137)="P2",CELL("format",'EDM EO Annual Return'!Q137)="P3",CELL("format",'EDM EO Annual Return'!Q137)="P4"),'EDM EO Annual Return'!Q137*100,'EDM EO Annual Return'!Q137) -> 0
A138: =IF(OR(CELL("format",'EDM EO Annual Return'!Q138)="P0",CELL("format",'EDM EO Annual Return'!Q138)="P1",CELL("format",'EDM EO Annual Return'!Q138)="P2",CELL("format",'EDM EO Annual Return'!Q138)="P3",CELL("format",'EDM EO Annual Return'!Q138)="P4"),'EDM EO Annual Return'!Q138*100,'EDM EO Annual Return'!Q138) -> 0
A139: =IF(OR(CELL("format",'EDM EO Annual Return'!Q139)="P0",CELL("format",'EDM EO Annual Return'!Q139)="P1",CELL("format",'EDM EO Annual Return'!Q139)="P2",CELL("format",'EDM EO Annual Return'!Q139)="P3",CELL("format",'EDM EO Annual Return'!Q139)="P4"),'EDM EO Annual Return'!Q139*100,'EDM EO Annual Return'!Q139) -> 0
A140: =IF(OR(CELL("format",'EDM EO Annual Return'!Q140)="P0",CELL("format",'EDM EO Annual Return'!Q140)="P1",CELL("format",'EDM EO Annual Return'!Q140)="P2",CELL("format",'EDM EO Annual Return'!Q140)="P3",CELL("format",'EDM EO Annual Return'!Q140)="P4"),'EDM EO Annual Return'!Q140*100,'EDM EO Annual Return'!Q140) -> 0
A141: =IF(OR(CELL("format",'EDM EO Annual Return'!Q141)="P0",CELL("format",'EDM EO Annual Return'!Q141)="P1",CELL("format",'EDM EO Annual Return'!Q141)="P2",CELL("format",'EDM EO Annual Return'!Q141)="P3",CELL("format",'EDM EO Annual Return'!Q141)="P4"),'EDM EO Annual Return'!Q141*100,'EDM EO Annual Return'!Q141) -> 0
A142: =IF(OR(CELL("format",'EDM EO Annual Return'!Q142)="P0",CELL("format",'EDM EO Annual Return'!Q142)="P1",CELL("format",'EDM EO Annual Return'!Q142)="P2",CELL("format",'EDM EO Annual Return'!Q142)="P3",CELL("format",'EDM EO Annual Return'!Q142)="P4"),'EDM EO Annual Return'!Q142*100,'EDM EO Annual Return'!Q142) -> 0
A143: =IF(OR(CELL("format",'EDM EO Annual Return'!Q143)="P0",CELL("format",'EDM EO Annual Return'!Q143)="P1",CELL("format",'EDM EO Annual Return'!Q143)="P2",CELL("format",'EDM EO Annual Return'!Q143)="P3",CELL("format",'EDM EO Annual Return'!Q143)="P4"),'EDM EO Annual Return'!Q143*100,'EDM EO Annual Return'!Q143) -> 0
A144: =IF(OR(CELL("format",'EDM EO Annual Return'!Q144)="P0",CELL("format",'EDM EO Annual Return'!Q144)="P1",CELL("format",'EDM EO Annual Return'!Q144)="P2",CELL("format",'EDM EO Annual Return'!Q144)="P3",CELL("format",'EDM EO Annual Return'!Q144)="P4"),'EDM EO Annual Return'!Q144*100,'EDM EO Annual Return'!Q144) -> 0
A145: =IF(OR(CELL("format",'EDM EO Annual Return'!Q145)="P0",CELL("format",'EDM EO Annual Return'!Q145)="P1",CELL("format",'EDM EO Annual Return'!Q145)="P2",CELL("format",'EDM EO Annual Return'!Q145)="P3",CELL("format",'EDM EO Annual Return'!Q145)="P4"),'EDM EO Annual Return'!Q145*100,'EDM EO Annual Return'!Q145) -> 0
A146: =IF(OR(CELL("format",'EDM EO Annual Return'!Q146)="P0",CELL("format",'EDM EO Annual Return'!Q146)="P1",CELL("format",'EDM EO Annual Return'!Q146)="P2",CELL("format",'EDM EO Annual Return'!Q146)="P3",CELL("format",'EDM EO Annual Return'!Q146)="P4"),'EDM EO Annual Return'!Q146*100,'EDM EO Annual Return'!Q146) -> 0
A147: =IF(OR(CELL("format",'EDM EO Annual Return'!Q147)="P0",CELL("format",'EDM EO Annual Return'!Q147)="P1",CELL("format",'EDM EO Annual Return'!Q147)="P2",CELL("format",'EDM EO Annual Return'!Q147)="P3",CELL("format",'EDM EO Annual Return'!Q147)="P4"),'EDM EO Annual Return'!Q147*100,'EDM EO Annual Return'!Q147) -> 0
A148: =IF(OR(CELL("format",'EDM EO Annual Return'!Q148)="P0",CELL("format",'EDM EO Annual Return'!Q148)="P1",CELL("format",'EDM EO Annual Return'!Q148)="P2",CELL("format",'EDM EO Annual Return'!Q148)="P3",CELL("format",'EDM EO Annual Return'!Q148)="P4"),'EDM EO Annual Return'!Q148*100,'EDM EO Annual Return'!Q148) -> 0
A149: =IF(OR(CELL("format",'EDM EO Annual Return'!Q149)="P0",CELL("format",'EDM EO Annual Return'!Q149)="P1",CELL("format",'EDM EO Annual Return'!Q149)="P2",CELL("format",'EDM EO Annual Return'!Q149)="P3",CELL("format",'EDM EO Annual Return'!Q149)="P4"),'EDM EO Annual Return'!Q149*100,'EDM EO Annual Return'!Q149) -> 0
A150: =IF(OR(CELL("format",'EDM EO Annual Return'!Q150)="P0",CELL("format",'EDM EO Annual Return'!Q150)="P1",CELL("format",'EDM EO Annual Return'!Q150)="P2",CELL("format",'EDM EO Annual Return'!Q150)="P3",CELL("format",'EDM EO Annual Return'!Q150)="P4"),'EDM EO Annual Return'!Q150*100,'EDM EO Annual Return'!Q150) -> 0
A151: =IF(OR(CELL("format",'EDM EO Annual Return'!Q151)="P0",CELL("format",'EDM EO Annual Return'!Q151)="P1",CELL("format",'EDM EO Annual Return'!Q151)="P2",CELL("format",'EDM EO Annual Return'!Q151)="P3",CELL("format",'EDM EO Annual Return'!Q151)="P4"),'EDM EO Annual Return'!Q151*100,'EDM EO Annual Return'!Q151) -> 0
A152: =IF(OR(CELL("format",'EDM EO Annual Return'!Q152)="P0",CELL("format",'EDM EO Annual Return'!Q152)="P1",CELL("format",'EDM EO Annual Return'!Q152)="P2",CELL("format",'EDM EO Annual Return'!Q152)="P3",CELL("format",'EDM EO Annual Return'!Q152)="P4"),'EDM EO Annual Return'!Q152*100,'EDM EO Annual Return'!Q152) -> 0
A153: =IF(OR(CELL("format",'EDM EO Annual Return'!Q153)="P0",CELL("format",'EDM EO Annual Return'!Q153)="P1",CELL("format",'EDM EO Annual Return'!Q153)="P2",CELL("format",'EDM EO Annual Return'!Q153)="P3",CELL("format",'EDM EO Annual Return'!Q153)="P4"),'EDM EO Annual Return'!Q153*100,'EDM EO Annual Return'!Q153) -> 0
A154: =IF(OR(CELL("format",'EDM EO Annual Return'!Q154)="P0",CELL("format",'EDM EO Annual Return'!Q154)="P1",CELL("format",'EDM EO Annual Return'!Q154)="P2",CELL("format",'EDM EO Annual Return'!Q154)="P3",CELL("format",'EDM EO Annual Return'!Q154)="P4"),'EDM EO Annual Return'!Q154*100,'EDM EO Annual Return'!Q154) -> 0
A155: =IF(OR(CELL("format",'EDM EO Annual Return'!Q155)="P0",CELL("format",'EDM EO Annual Return'!Q155)="P1",CELL("format",'EDM EO Annual Return'!Q155)="P2",CELL("format",'EDM EO Annual Return'!Q155)="P3",CELL("format",'EDM EO Annual Return'!Q155)="P4"),'EDM EO Annual Return'!Q155*100,'EDM EO Annual Return'!Q155) -> 0
A156: =IF(OR(CELL("format",'EDM EO Annual Return'!Q156)="P0",CELL("format",'EDM EO Annual Return'!Q156)="P1",CELL("format",'EDM EO Annual Return'!Q156)="P2",CELL("format",'EDM EO Annual Return'!Q156)="P3",CELL("format",'EDM EO Annual Return'!Q156)="P4"),'EDM EO Annual Return'!Q156*100,'EDM EO Annual Return'!Q156) -> 0
A157: =IF(OR(CELL("format",'EDM EO Annual Return'!Q157)="P0",CELL("format",'EDM EO Annual Return'!Q157)="P1",CELL("format",'EDM EO Annual Return'!Q157)="P2",CELL("format",'EDM EO Annual Return'!Q157)="P3",CELL("format",'EDM EO Annual Return'!Q157)="P4"),'EDM EO Annual Return'!Q157*100,'EDM EO Annual Return'!Q157) -> 0
A158: =IF(OR(CELL("format",'EDM EO Annual Return'!Q158)="P0",CELL("format",'EDM EO Annual Return'!Q158)="P1",CELL("format",'EDM EO Annual Return'!Q158)="P2",CELL("format",'EDM EO Annual Return'!Q158)="P3",CELL("format",'EDM EO Annual Return'!Q158)="P4"),'EDM EO Annual Return'!Q158*100,'EDM EO Annual Return'!Q158) -> 0
A159: =IF(OR(CELL("format",'EDM EO Annual Return'!Q159)="P0",CELL("format",'EDM EO Annual Return'!Q159)="P1",CELL("format",'EDM EO Annual Return'!Q159)="P2",CELL("format",'EDM EO Annual Return'!Q159)="P3",CELL("format",'EDM EO Annual Return'!Q159)="P4"),'EDM EO Annual Return'!Q159*100,'EDM EO Annual Return'!Q159) -> 0
A160: =IF(OR(CELL("format",'EDM EO Annual Return'!Q160)="P0",CELL("format",'EDM EO Annual Return'!Q160)="P1",CELL("format",'EDM EO Annual Return'!Q160)="P2",CELL("format",'EDM EO Annual Return'!Q160)="P3",CELL("format",'EDM EO Annual Return'!Q160)="P4"),'EDM EO Annual Return'!Q160*100,'EDM EO Annual Return'!Q160) -> 0
A161: =IF(OR(CELL("format",'EDM EO Annual Return'!Q161)="P0",CELL("format",'EDM EO Annual Return'!Q161)="P1",CELL("format",'EDM EO Annual Return'!Q161)="P2",CELL("format",'EDM EO Annual Return'!Q161)="P3",CELL("format",'EDM EO Annual Return'!Q161)="P4"),'EDM EO Annual Return'!Q161*100,'EDM EO Annual Return'!Q161) -> 0
A162: =IF(OR(CELL("format",'EDM EO Annual Return'!Q162)="P0",CELL("format",'EDM EO Annual Return'!Q162)="P1",CELL("format",'EDM EO Annual Return'!Q162)="P2",CELL("format",'EDM EO Annual Return'!Q162)="P3",CELL("format",'EDM EO Annual Return'!Q162)="P4"),'EDM EO Annual Return'!Q162*100,'EDM EO Annual Return'!Q162) -> 0
A163: =IF(OR(CELL("format",'EDM EO Annual Return'!Q163)="P0",CELL("format",'EDM EO Annual Return'!Q163)="P1",CELL("format",'EDM EO Annual Return'!Q163)="P2",CELL("format",'EDM EO Annual Return'!Q163)="P3",CELL("format",'EDM EO Annual Return'!Q163)="P4"),'EDM EO Annual Return'!Q163*100,'EDM EO Annual Return'!Q163) -> 0
A164: =IF(OR(CELL("format",'EDM EO Annual Return'!Q164)="P0",CELL("format",'EDM EO Annual Return'!Q164)="P1",CELL("format",'EDM EO Annual Return'!Q164)="P2",CELL("format",'EDM EO Annual Return'!Q164)="P3",CELL("format",'EDM EO Annual Return'!Q164)="P4"),'EDM EO Annual Return'!Q164*100,'EDM EO Annual Return'!Q164) -> 0
A165: =IF(OR(CELL("format",'EDM EO Annual Return'!Q165)="P0",CELL("format",'EDM EO Annual Return'!Q165)="P1",CELL("format",'EDM EO Annual Return'!Q165)="P2",CELL("format",'EDM EO Annual Return'!Q165)="P3",CELL("format",'EDM EO Annual Return'!Q165)="P4"),'EDM EO Annual Return'!Q165*100,'EDM EO Annual Return'!Q165) -> 0
A166: =IF(OR(CELL("format",'EDM EO Annual Return'!Q166)="P0",CELL("format",'EDM EO Annual Return'!Q166)="P1",CELL("format",'EDM EO Annual Return'!Q166)="P2",CELL("format",'EDM EO Annual Return'!Q166)="P3",CELL("format",'EDM EO Annual Return'!Q166)="P4"),'EDM EO Annual Return'!Q166*100,'EDM EO Annual Return'!Q166) -> 0
A167: =IF(OR(CELL("format",'EDM EO Annual Return'!Q167)="P0",CELL("format",'EDM EO Annual Return'!Q167)="P1",CELL("format",'EDM EO Annual Return'!Q167)="P2",CELL("format",'EDM EO Annual Return'!Q167)="P3",CELL("format",'EDM EO Annual Return'!Q167)="P4"),'EDM EO Annual Return'!Q167*100,'EDM EO Annual Return'!Q167) -> 0
A168: =IF(OR(CELL("format",'EDM EO Annual Return'!Q168)="P0",CELL("format",'EDM EO Annual Return'!Q168)="P1",CELL("format",'EDM EO Annual Return'!Q168)="P2",CELL("format",'EDM EO Annual Return'!Q168)="P3",CELL("format",'EDM EO Annual Return'!Q168)="P4"),'EDM EO Annual Return'!Q168*100,'EDM EO Annual Return'!Q168) -> 0
A169: =IF(OR(CELL("format",'EDM EO Annual Return'!Q169)="P0",CELL("format",'EDM EO Annual Return'!Q169)="P1",CELL("format",'EDM EO Annual Return'!Q169)="P2",CELL("format",'EDM EO Annual Return'!Q169)="P3",CELL("format",'EDM EO Annual Return'!Q169)="P4"),'EDM EO Annual Return'!Q169*100,'EDM EO Annual Return'!Q169) -> 0
A170: =IF(OR(CELL("format",'EDM EO Annual Return'!Q170)="P0",CELL("format",'EDM EO Annual Return'!Q170)="P1",CELL("format",'EDM EO Annual Return'!Q170)="P2",CELL("format",'EDM EO Annual Return'!Q170)="P3",CELL("format",'EDM EO Annual Return'!Q170)="P4"),'EDM EO Annual Return'!Q170*100,'EDM EO Annual Return'!Q170) -> 0
A171: =IF(OR(CELL("format",'EDM EO Annual Return'!Q171)="P0",CELL("format",'EDM EO Annual Return'!Q171)="P1",CELL("format",'EDM EO Annual Return'!Q171)="P2",CELL("format",'EDM EO Annual Return'!Q171)="P3",CELL("format",'EDM EO Annual Return'!Q171)="P4"),'EDM EO Annual Return'!Q171*100,'EDM EO Annual Return'!Q171) -> 0
A172: =IF(OR(CELL("format",'EDM EO Annual Return'!Q172)="P0",CELL("format",'EDM EO Annual Return'!Q172)="P1",CELL("format",'EDM EO Annual Return'!Q172)="P2",CELL("format",'EDM EO Annual Return'!Q172)="P3",CELL("format",'EDM EO Annual Return'!Q172)="P4"),'EDM EO Annual Return'!Q172*100,'EDM EO Annual Return'!Q172) -> 0
A173: =IF(OR(CELL("format",'EDM EO Annual Return'!Q173)="P0",CELL("format",'EDM EO Annual Return'!Q173)="P1",CELL("format",'EDM EO Annual Return'!Q173)="P2",CELL("format",'EDM EO Annual Return'!Q173)="P3",CELL("format",'EDM EO Annual Return'!Q173)="P4"),'EDM EO Annual Return'!Q173*100,'EDM EO Annual Return'!Q173) -> 0
A174: =IF(OR(CELL("format",'EDM EO Annual Return'!Q174)="P0",CELL("format",'EDM EO Annual Return'!Q174)="P1",CELL("format",'EDM EO Annual Return'!Q174)="P2",CELL("format",'EDM EO Annual Return'!Q174)="P3",CELL("format",'EDM EO Annual Return'!Q174)="P4"),'EDM EO Annual Return'!Q174*100,'EDM EO Annual Return'!Q174) -> 0
A175: =IF(OR(CELL("format",'EDM EO Annual Return'!Q175)="P0",CELL("format",'EDM EO Annual Return'!Q175)="P1",CELL("format",'EDM EO Annual Return'!Q175)="P2",CELL("format",'EDM EO Annual Return'!Q175)="P3",CELL("format",'EDM EO Annual Return'!Q175)="P4"),'EDM EO Annual Return'!Q175*100,'EDM EO Annual Return'!Q175) -> 0
A176: =IF(OR(CELL("format",'EDM EO Annual Return'!Q176)="P0",CELL("format",'EDM EO Annual Return'!Q176)="P1",CELL("format",'EDM EO Annual Return'!Q176)="P2",CELL("format",'EDM EO Annual Return'!Q176)="P3",CELL("format",'EDM EO Annual Return'!Q176)="P4"),'EDM EO Annual Return'!Q176*100,'EDM EO Annual Return'!Q176) -> 0
A177: =IF(OR(CELL("format",'EDM EO Annual Return'!Q177)="P0",CELL("format",'EDM EO Annual Return'!Q177)="P1",CELL("format",'EDM EO Annual Return'!Q177)="P2",CELL("format",'EDM EO Annual Return'!Q177)="P3",CELL("format",'EDM EO Annual Return'!Q177)="P4"),'EDM EO Annual Return'!Q177*100,'EDM EO Annual Return'!Q177) -> 0
A178: =IF(OR(CELL("format",'EDM EO Annual Return'!Q178)="P0",CELL("format",'EDM EO Annual Return'!Q178)="P1",CELL("format",'EDM EO Annual Return'!Q178)="P2",CELL("format",'EDM EO Annual Return'!Q178)="P3",CELL("format",'EDM EO Annual Return'!Q178)="P4"),'EDM EO Annual Return'!Q178*100,'EDM EO Annual Return'!Q178) -> 0
A179: =IF(OR(CELL("format",'EDM EO Annual Return'!Q179)="P0",CELL("format",'EDM EO Annual Return'!Q179)="P1",CELL("format",'EDM EO Annual Return'!Q179)="P2",CELL("format",'EDM EO Annual Return'!Q179)="P3",CELL("format",'EDM EO Annual Return'!Q179)="P4"),'EDM EO Annual Return'!Q179*100,'EDM EO Annual Return'!Q179) -> 0
A180: =IF(OR(CELL("format",'EDM EO Annual Return'!Q180)="P0",CELL("format",'EDM EO Annual Return'!Q180)="P1",CELL("format",'EDM EO Annual Return'!Q180)="P2",CELL("format",'EDM EO Annual Return'!Q180)="P3",CELL("format",'EDM EO Annual Return'!Q180)="P4"),'EDM EO Annual Return'!Q180*100,'EDM EO Annual Return'!Q180) -> 0
A181: =IF(OR(CELL("format",'EDM EO Annual Return'!Q181)="P0",CELL("format",'EDM EO Annual Return'!Q181)="P1",CELL("format",'EDM EO Annual Return'!Q181)="P2",CELL("format",'EDM EO Annual Return'!Q181)="P3",CELL("format",'EDM EO Annual Return'!Q181)="P4"),'EDM EO Annual Return'!Q181*100,'EDM EO Annual Return'!Q181) -> 0
A182: =IF(OR(CELL("format",'EDM EO Annual Return'!Q182)="P0",CELL("format",'EDM EO Annual Return'!Q182)="P1",CELL("format",'EDM EO Annual Return'!Q182)="P2",CELL("format",'EDM EO Annual Return'!Q182)="P3",CELL("format",'EDM EO Annual Return'!Q182)="P4"),'EDM EO Annual Return'!Q182*100,'EDM EO Annual Return'!Q182) -> 0
A183: =IF(OR(CELL("format",'EDM EO Annual Return'!Q183)="P0",CELL("format",'EDM EO Annual Return'!Q183)="P1",CELL("format",'EDM EO Annual Return'!Q183)="P2",CELL("format",'EDM EO Annual Return'!Q183)="P3",CELL("format",'EDM EO Annual Return'!Q183)="P4"),'EDM EO Annual Return'!Q183*100,'EDM EO Annual Return'!Q183) -> 0
A184: =IF(OR(CELL("format",'EDM EO Annual Return'!Q184)="P0",CELL("format",'EDM EO Annual Return'!Q184)="P1",CELL("format",'EDM EO Annual Return'!Q184)="P2",CELL("format",'EDM EO Annual Return'!Q184)="P3",CELL("format",'EDM EO Annual Return'!Q184)="P4"),'EDM EO Annual Return'!Q184*100,'EDM EO Annual Return'!Q184) -> 0
A185: =IF(OR(CELL("format",'EDM EO Annual Return'!Q185)="P0",CELL("format",'EDM EO Annual Return'!Q185)="P1",CELL("format",'EDM EO Annual Return'!Q185)="P2",CELL("format",'EDM EO Annual Return'!Q185)="P3",CELL("format",'EDM EO Annual Return'!Q185)="P4"),'EDM EO Annual Return'!Q185*100,'EDM EO Annual Return'!Q185) -> 0
A186: =IF(OR(CELL("format",'EDM EO Annual Return'!Q186)="P0",CELL("format",'EDM EO Annual Return'!Q186)="P1",CELL("format",'EDM EO Annual Return'!Q186)="P2",CELL("format",'EDM EO Annual Return'!Q186)="P3",CELL("format",'EDM EO Annual Return'!Q186)="P4"),'EDM EO Annual Return'!Q186*100,'EDM EO Annual Return'!Q186) -> 0
A187: =IF(OR(CELL("format",'EDM EO Annual Return'!Q187)="P0",CELL("format",'EDM EO Annual Return'!Q187)="P1",CELL("format",'EDM EO Annual Return'!Q187)="P2",CELL("format",'EDM EO Annual Return'!Q187)="P3",CELL("format",'EDM EO Annual Return'!Q187)="P4"),'EDM EO Annual Return'!Q187*100,'EDM EO Annual Return'!Q187) -> 0
A188: =IF(OR(CELL("format",'EDM EO Annual Return'!Q188)="P0",CELL("format",'EDM EO Annual Return'!Q188)="P1",CELL("format",'EDM EO Annual Return'!Q188)="P2",CELL("format",'EDM EO Annual Return'!Q188)="P3",CELL("format",'EDM EO Annual Return'!Q188)="P4"),'EDM EO Annual Return'!Q188*100,'EDM EO Annual Return'!Q188) -> 0
A189: =IF(OR(CELL("format",'EDM EO Annual Return'!Q189)="P0",CELL("format",'EDM EO Annual Return'!Q189)="P1",CELL("format",'EDM EO Annual Return'!Q189)="P2",CELL("format",'EDM EO Annual Return'!Q189)="P3",CELL("format",'EDM EO Annual Return'!Q189)="P4"),'EDM EO Annual Return'!Q189*100,'EDM EO Annual Return'!Q189) -> 0
A190: =IF(OR(CELL("format",'EDM EO Annual Return'!Q190)="P0",CELL("format",'EDM EO Annual Return'!Q190)="P1",CELL("format",'EDM EO Annual Return'!Q190)="P2",CELL("format",'EDM EO Annual Return'!Q190)="P3",CELL("format",'EDM EO Annual Return'!Q190)="P4"),'EDM EO Annual Return'!Q190*100,'EDM EO Annual Return'!Q190) -> 0
A191: =IF(OR(CELL("format",'EDM EO Annual Return'!Q191)="P0",CELL("format",'EDM EO Annual Return'!Q191)="P1",CELL("format",'EDM EO Annual Return'!Q191)="P2",CELL("format",'EDM EO Annual Return'!Q191)="P3",CELL("format",'EDM EO Annual Return'!Q191)="P4"),'EDM EO Annual Return'!Q191*100,'EDM EO Annual Return'!Q191) -> 0
A192: =IF(OR(CELL("format",'EDM EO Annual Return'!Q192)="P0",CELL("format",'EDM EO Annual Return'!Q192)="P1",CELL("format",'EDM EO Annual Return'!Q192)="P2",CELL("format",'EDM EO Annual Return'!Q192)="P3",CELL("format",'EDM EO Annual Return'!Q192)="P4"),'EDM EO Annual Return'!Q192*100,'EDM EO Annual Return'!Q192) -> 0
A193: =IF(OR(CELL("format",'EDM EO Annual Return'!Q193)="P0",CELL("format",'EDM EO Annual Return'!Q193)="P1",CELL("format",'EDM EO Annual Return'!Q193)="P2",CELL("format",'EDM EO Annual Return'!Q193)="P3",CELL("format",'EDM EO Annual Return'!Q193)="P4"),'EDM EO Annual Return'!Q193*100,'EDM EO Annual Return'!Q193) -> 0
A194: =IF(OR(CELL("format",'EDM EO Annual Return'!Q194)="P0",CELL("format",'EDM EO Annual Return'!Q194)="P1",CELL("format",'EDM EO Annual Return'!Q194)="P2",CELL("format",'EDM EO Annual Return'!Q194)="P3",CELL("format",'EDM EO Annual Return'!Q194)="P4"),'EDM EO Annual Return'!Q194*100,'EDM EO Annual Return'!Q194) -> 0
A195: =IF(OR(CELL("format",'EDM EO Annual Return'!Q195)="P0",CELL("format",'EDM EO Annual Return'!Q195)="P1",CELL("format",'EDM EO Annual Return'!Q195)="P2",CELL("format",'EDM EO Annual Return'!Q195)="P3",CELL("format",'EDM EO Annual Return'!Q195)="P4"),'EDM EO Annual Return'!Q195*100,'EDM EO Annual Return'!Q195) -> 0
A196: =IF(OR(CELL("format",'EDM EO Annual Return'!Q196)="P0",CELL("format",'EDM EO Annual Return'!Q196)="P1",CELL("format",'EDM EO Annual Return'!Q196)="P2",CELL("format",'EDM EO Annual Return'!Q196)="P3",CELL("format",'EDM EO Annual Return'!Q196)="P4"),'EDM EO Annual Return'!Q196*100,'EDM EO Annual Return'!Q196) -> 0
A197: =IF(OR(CELL("format",'EDM EO Annual Return'!Q197)="P0",CELL("format",'EDM EO Annual Return'!Q197)="P1",CELL("format",'EDM EO Annual Return'!Q197)="P2",CELL("format",'EDM EO Annual Return'!Q197)="P3",CELL("format",'EDM EO Annual Return'!Q197)="P4"),'EDM EO Annual Return'!Q197*100,'EDM EO Annual Return'!Q197) -> 0
A198: =IF(OR(CELL("format",'EDM EO Annual Return'!Q198)="P0",CELL("format",'EDM EO Annual Return'!Q198)="P1",CELL("format",'EDM EO Annual Return'!Q198)="P2",CELL("format",'EDM EO Annual Return'!Q198)="P3",CELL("format",'EDM EO Annual Return'!Q198)="P4"),'EDM EO Annual Return'!Q198*100,'EDM EO Annual Return'!Q198) -> 0
A199: =IF(OR(CELL("format",'EDM EO Annual Return'!Q199)="P0",CELL("format",'EDM EO Annual Return'!Q199)="P1",CELL("format",'EDM EO Annual Return'!Q199)="P2",CELL("format",'EDM EO Annual Return'!Q199)="P3",CELL("format",'EDM EO Annual Return'!Q199)="P4"),'EDM EO Annual Return'!Q199*100,'EDM EO Annual Return'!Q199) -> 0
A200: =IF(OR(CELL("format",'EDM EO Annual Return'!Q200)="P0",CELL("format",'EDM EO Annual Return'!Q200)="P1",CELL("format",'EDM EO Annual Return'!Q200)="P2",CELL("format",'EDM EO Annual Return'!Q200)="P3",CELL("format",'EDM EO Annual Return'!Q200)="P4"),'EDM EO Annual Return'!Q200*100,'EDM EO Annual Return'!Q200) -> 0
A201: =IF(OR(CELL("format",'EDM EO Annual Return'!Q201)="P0",CELL("format",'EDM EO Annual Return'!Q201)="P1",CELL("format",'EDM EO Annual Return'!Q201)="P2",CELL("format",'EDM EO Annual Return'!Q201)="P3",CELL("format",'EDM EO Annual Return'!Q201)="P4"),'EDM EO Annual Return'!Q201*100,'EDM EO Annual Return'!Q201) -> 0
... 3799 more rows

Sheet Lookup Drop Downs (hidden)
A1: Column A | B1: Column G | C1: Column N | D1: Column R | E1: Column S
A2: Water Company Name | B2: Storm discharge asset type | C2: Initial EDM Commission Date | D2: EDM Operation - Reporting percentage - Primary Reason <90% | E2: EDM Operation - Action taken / planned - Status & Timeframe
A3: Thames Water | B3: Emergency Overflow | C3: Commissioned pre-2016 - full year data expected | D3: Access - Unable to retrieve data from non-telemetry data logger (NB: not to be used for delayed access to fix existing fault) | E3: Scheduled
A4: Anglian Water | C4: Commissioned in 2016 - full year data expected | D4: Capital / maintenance works affect EDM operation | E4: Resolved - Jan
A5: Yorkshire Water | C5: Commissioned in 2017 - full year data expected | D5: Comms failure / issue | E5: Resolved - Feb
A6: Dwr Cymru Welsh Water | C6: Commissioned in 2018 - full year data expected | D6: Installation set-up/design issue | E6: Resolved - Mar
A7: Northumbrian Water | C7: Commissioned in 2019 - full year data expected | D7: Power failure / issue | E7: Resolved - Apr
A8: Severn Trent Water | C8: Commissioned in 2020 - full year data expected | D8: Sensor failure / issue | E8: Resolved - May
A9: Southern Water | C9: Commissioned in 2021 - full year data expected | D9: Telemetry or data archiving failure / issue | E9: Resolved - Jun
A10: South West Water | C10: Jan 2022 | D10: No longer operational as an overflow - permit revoked or to be revoked | E10: Resolved - Jul
A11: United Utilities | C11: Feb 2022 | E11: Resolved - Aug
A12: Wessex Water | C12: Mar 2022 | E12: Resolved - Sep
C13: Apr 2022 | E13: Resolved - Oct
C14: May 2022 | E14: Resolved - Nov
C15: Jun 2022 | E15: Resolved - Dec
C16: Jul 2022 | E16: Resolved - January after reporting year
C17: Aug 2022 | E17: Resolved - February after reporting year
C18: Sep 2022 | E18: N/A - Ongoing investigation
C19: Oct 2022 | E19: Overflow no longer spilling to environment - from Jan
C20: Nov 2022 | E20: Overflow no longer spilling to environment - from Feb
C21: Dec 2022 | E21: Overflow no longer spilling to environment - from Mar
C22: Installed but not yet commissioned | E22: Overflow no longer spilling to environment - from Apr
C23: EDM to be installed by December 2023 | E23: Overflow no longer spilling to environment - from May
C24: EDM not technically feasible at this overflow | E24: Overflow no longer spilling to environment - from Jun
E25: Overflow no longer spilling to environment - from Jul
E26: Overflow no longer spilling to environment - from Aug
E27: Overflow no longer spilling to environment - from Sep
E28: Overflow no longer spilling to environment - from Oct
E29: Overflow no longer spilling to environment - from Nov
E30: Overflow no longer spilling to environment - from Dec
